Cogmind - Beta 14 @@@ ROGUE MODE // 2025.03.05 @ 21:14:01 Player: dwarfinator Result: Establishing Free Derelict Territories! Performance ------------- Evolutions (9) 4500 Regions Visited (42) 8400 Robots Destroyed (702) 3510 Value Destroyed (36778) 36778 Prototype IDs (104) 2080 Alien Tech Used (2) 400 Bonus (48714) 48714 TOTAL SCORE: 104382 Bonus ------- Triggered High Security 500 High Alert Combat Kills 9222 Follower Combat Kills 3385 Awakened Behemoth Slayer 1000 Entered Garrisons 800 Entered DSFs 500 Network Hubs Disabled 800 Aligned with FarCom 300 Met Imprinter 300 Destroyed Z-Imprinter 1000 Triggered Deep Caves Wall 500 Exposed GOLEM Chamber 500 Acquired ECA 300 Met Warlord at Base 500 MAIN.C Attacked Warlord 500 Warlord Defense Kills 976 A7 Reached Mainframe 300 Met Warlord at Research 2000 Invited to Help at Command 2000 Destroyed MAIN.C Guards 500 Met MAIN.C 5000 Hacked MAIN.C 300 Destroyed MAIN.C Shell 5000 Destroyed MAIN.C 10000 Met Warlord at Command 2000 Win 3000 Friendly Fire -2469 Cogmind --------- Core Integrity 1508/1600 Matter 225/300 Energy 964/1080 System Corruption 11% Temperature Cool (0) Movement Immobile (Siege) Location Free Derelict Territories Parts ------- > --- POWER (4) -------- Graviton Reactor Zero-point Reactor (fused) Vortex Chain Reactor > --- PROPULSION (6) --- Armored Heavy Treads Advanced Heavy Siege Treads High-density Centrium Heavy Treads (fused) > --- UTILITY (12) ----- 2N-1CE's Frost Array Experimental Coolant Injector Huge Storage Unit Experimental Optical Array Assembled Combat Suite Quantum Capacitor Heavy Armor Plating Advanced Powered Armor Graphene Brace AEGIS Remote Shield > --- WEAPON (3) ------- Enhanced Nova Cannon Sigix Broadsword > --- INVENTORY (25) --- Quantum Reactor Quantum Reactor Quantum Reactor Zero-point Reactor Armored Heavy Treads Advanced Heavy Siege Treads Experimental Energy Well (600) Experimental Energy Well (0) Zionite Biocell (0) Zionite Biocell (0) Improved Matter Compressor Seismic Detector Matter Filter Experimental Transmission Jammer Experimental EM Disruption Field Subatomic Replicator Compact HERF Cannon Enhanced Nova Cannon Improved Potential Cannon Gamma Bomb Array Z-bomb Delivery System Advanced Remote Datajack Peak State ------------ > --- POWER ------------ Graviton Reactor Zero-point Reactor Vortex Chain Reactor > --- PROPULSION ------- Armored Heavy Treads High-density Centrium Heavy Treads High-density Centrium Heavy Treads > --- UTILITY ---------- 2N-1CE's Frost Array Huge Storage Unit Experimental Optical Array Assembled Combat Suite Quantum Capacitor Experimental Transmission Jammer Advanced Powered Armor Advanced Powered Armor Graphene Brace Experimental EM Disruption Field AEGIS Remote Shield > --- WEAPON ----------- Enhanced Nova Cannon Sigix Broadsword > --- INVENTORY -------- Zero-point Reactor Armored Heavy Treads Experimental Coolant Injector Experimental Energy Well Experimental Energy Well Zionite Biocell Zionite Biocell Seismic Detector Advanced Powered Armor Improved Focal Shield Antimissile System Advanced Hacking Suite Advanced Hacking Suite Drone Bay Subatomic Replicator Compact HERF Cannon Enhanced Nova Cannon Improved Potential Cannon 8R-AWN's Boregun Gamma Bomb Array Z-bomb Delivery System Advanced Remote Datajack CR-A16's Behemoth Slayer [Rating: 247] Favorites ----------- Power Assembled Flux Generator Engine Heavy Ion Engine Power Core Micro Nuclear Core Reactor Assembled Flux Generator Propulsion Assembled Alloy Leg Treads Armored Treads Leg Assembled Alloy Leg Wheel Armored Huge Wheel Flight Unit Improved Flight Unit Utility Huge Storage Unit Device Improved Transmission Jammer Storage Huge Storage Unit Processor Experimental Targeting Computer Hackware Hacking Suite Protection Advanced Powered Armor Weapon EM Pulse Cannon Energy Gun Zionite Laser-S Energy Cannon EM Pulse Cannon Ballistic Gun Enhanced Autogun Ballistic Cannon Heavy Assault Cannon Launcher Rocket Launcher Special Weapon Improved Plasma Cutter Impact Weapon Great Maul Slashing Weapon Sigix Broadsword Piercing Weapon CR-A16's Behemoth Slayer Special Melee Weapon Improved Datajack Build | -11 -10 -10 -9 -9 -9 -8 -8 -8 -8 -8 -8 -8 -7 -7 -7 -7 -7 -7 -7 -6 -6 -6 -6 -6 -5 -5 -5 -5 -5 -5 -4 -4 -4 -4 -3 -3 -3 -2 -2 -2 -1 -1 ------- Run | Yrd Mat Min Mat Min Exi Min Mat Gar Mat Gar Mat Sto Fac Was Fac Low Low Zio Dee Pro Fac Gar Fac DSF Fac Ext Cet Arc Hub Gar Fac Upp Upp War Pro Res Tes Res Qua Sec Acc Com Slots Evolved 18 | . . . 2 . . . 2 . . . . . 2 . . . . . . . 2 . . . 2 . . . . . 2 . . . . 2 . 2 . . 2 . Power 3 | . . . . . . . . . . . . . . . . . . . . . 1 . . . . . . . . . . . . . . . . 1 . . 1 . Propulsion 4 | . . . 1 . . . . . . . . . . . . . . . . . . . . . . . . . . . 1 . . . . 2 . . . . . . Utility 10 | . . . 1 . . . 2 . . . . . 2 . . . . . . . 1 . . . 2 . . . . . 1 . . . . . . 1 . . . . Weapon 1 | . . . . . . . . . . . . . . . . . . . . . . . . . . . . . . . . . . . . . . . . . 1 . Parts Attached 1016 | 9 8 14 70 5 22 10 29 14 15 30 18 36 6 6 67 1 2 3 48 5 31 33 2 25 17 16 6 7 43 35 42 15 7 13 8 6 70 16 43 37 33 93 Power 41 | 1 1 4 4 . . . 2 . . 1 1 2 . 1 3 . . . 2 1 . 3 . 1 . . . . . . 2 1 1 2 1 . 5 1 . . 1 . Engine 16 | 1 1 4 4 . . . 2 . . . . 2 . . . . . . . . . 1 . 1 . . . . . . . . . . . . . . . . . . Core 2 | . . . . . . . . . . . . . . . 2 . . . . . . . . . . . . . . . . . . . . . . . . . . . Reactor 23 | . . . . . . . . . . 1 1 . . 1 1 . . . 2 1 . 2 . . . . . . . . 2 1 1 2 1 . 5 1 . . 1 . Propulsion 101 | 2 . 1 16 . 3 . 8 . . 6 2 5 . . 3 . . . 7 . . 10 . 2 1 . . . 3 . 4 . 2 . . 2 7 5 6 1 2 3 Treads 60 | 2 . 1 15 . 3 . 7 . . 2 1 3 . . 2 . . . 4 . . 2 . . . . . . . . . . . . . . 1 5 6 1 2 3 Leg 25 | . . . . . . . . . . 1 . . . . . . . . 2 . . 5 . . 1 . . . 3 . 3 . 2 . . 2 6 . . . . . Wheel 15 | . . . . . . . 1 . . 3 1 2 . . 1 . . . 1 . . 3 . 2 . . . . . . 1 . . . . . . . . . . . Hover . | . . . . . . . . . . . . . . . . . . . . . . . . . . . . . . . . . . . . . . . . . . . Flight 1 | . . . 1 . . . . . . . . . . . . . . . . . . . . . . . . . . . . . . . . . . . . . . . Utility 522 | 3 3 3 30 1 10 6 11 4 9 10 10 16 3 2 29 . . 2 20 4 31 10 1 15 15 3 2 4 28 27 26 13 3 6 3 1 34 10 24 20 20 50 Device 348 | 2 1 2 12 1 1 3 5 4 5 7 3 3 3 1 20 . . 2 9 4 25 6 1 13 10 3 1 2 23 23 20 10 3 4 3 1 26 6 12 14 16 38 Storage 22 | 1 1 . 4 . 2 . 2 . . 1 . . . 1 . . . . 4 . . 1 . . 1 . . . 1 . . . . . . . 2 . . . . 1 Processor 12 | . . . . . . . . . . . . 1 . . 2 . . . . . 1 1 . . . . . . 3 . . 1 . . . . 1 1 . 1 . . Hackware 16 | . . . . . . . 1 . 1 . . 2 . . . . . . . . 3 . . . 2 . . 1 1 1 1 . . . . . . . 1 . . 2 Protection 124 | . 1 1 14 . 7 3 3 . 3 2 7 10 . . 7 . . . 7 . 2 2 . 2 2 . 1 1 . 3 5 2 . 2 . . 5 3 11 5 4 9 Artifact . | . . . . . . . . . . . . . . . . . . . . . . . . . . . . . . . . . . . . . . . . . . . Weapon 352 | 3 4 6 20 4 9 4 8 10 6 13 5 13 3 3 32 1 2 1 19 . . 10 1 7 1 13 4 3 12 8 10 1 1 5 4 3 24 . 13 16 10 40 Energy Gun 2 | . . . . . . . . . . . . . . . . . . . 1 . . . . . . . . . . . . . . 1 . . . . . . . . Energy Cannon 146 | . . 3 14 2 1 3 3 7 . 2 . . . . . . . . 1 . . 2 1 6 . 5 . 2 7 5 5 1 . 1 3 2 14 . 10 11 7 28 Ballistic Gun 70 | 3 2 1 1 1 4 . 2 . 2 . . 3 1 1 19 . 2 . 9 . . 5 . . 1 . 2 1 3 . 1 . . . . . 5 . . 1 . . Ballistic Cannon 22 | . . . . . . . . . 4 5 4 7 . . . . . . 1 . . . . . . . . . . . . . . . . . 1 . . . . . Launcher 39 | . 2 2 1 1 3 1 1 3 . 3 1 1 . 1 . . . . 4 . . 1 . 1 . . . . . . 3 . . 1 . . 1 . . 1 1 6 Special Weapon 19 | . . . . . . . . . . 1 . 2 . . . . . 1 . . . . . . . 5 1 . 2 1 . . . 1 . . . . . 1 . 4 Impact Weapon 30 | . . . 4 . 1 . 2 . . 2 . . 2 1 13 1 . . 3 . . . . . . . . . . . . . . . . . . . 1 . . . Slashing Weapon 6 | . . . . . . . . . . . . . . . . . . . . . . . . . . . 1 . . . . . . . . . . . 1 . 2 2 Piercing Weapon 15 | . . . . . . . . . . . . . . . . . . . . . . 2 . . . . . . . 2 1 . 1 1 1 1 3 . 1 2 . . Special Melee Weapon 3 | . . . . . . . . . . . . . . . . . . . . . . . . . . 3 . . . . . . . . . . . . . . . . Unidentified Prototypes 56 | . . 1 4 . 2 . . . . . 1 1 . 2 . . . 1 7 . . . . . . . . . 3 . . 1 1 5 1 . 16 2 8 . . . Corrupted Parts 1 | . . . . . . . . . . . . . . . . . . . . . . . . 1 . . . . . . . . . . . . . . . . . . System Corruption 1 | . . . . . . . . . . . . . . . . . . . . . . . . 1 . . . . . . . . . . . . . . . . . . Parts Lost 33 | . 2 1 1 . 7 1 . 1 . 2 4 1 . . 2 . . . . . . 9 . . . . . . 1 . . . . . 1 . . . . . . . Power 4 | . 1 . . . . . . . . 1 . . . . 1 . . . . . . 1 . . . . . . . . . . . . . . . . . . . . Propulsion 6 | . . 1 . . 3 . . . . . 1 . . . . . . . . . . 1 . . . . . . . . . . . . . . . . . . . . Utility 18 | . 1 . 1 . 4 . . . . 1 2 1 . . 1 . . . . . . 5 . . . . . . 1 . . . . . 1 . . . . . . . Weapon 5 | . . . . . . 1 . 1 . . 1 . . . . . . . . . . 2 . . . . . . . . . . . . . . . . . . . . Highest Loss Streak 7 | . 2 1 1 . 6 1 . 1 . 1 2 1 . . 1 . . . . . . 7 . . . . . . 1 . . . . . 1 . . . . . . . To Critical Strikes 3 | . . . . . 3 . . . . . . . . . . . . . . . . . . . . . . . . . . . . . . . . . . . . . Average Slot Usage (%) 83 | . 98 99 99 100 88 88 80 71 64 73 78 89 92 91 89 53 53 53 61 91 85 86 100 93 85 88 88 87 87 89 94 93 93 92 88 88 89 79 76 78 76 74 Engine 3 | . 13 14 11 11 11 11 8 9 9 8 . 6 7 . . . . . . . . 1 6 5 . . . . . . . . . . . . . . . . . . Reactor 4 | . . . . . . . . . . . 9 2 . 6 4 . . . 6 6 6 5 6 6 4 5 5 5 5 5 7 9 10 10 10 4 3 6 8 8 12 12 Treads 11 | . 28 28 33 33 32 33 25 9 9 9 9 8 7 7 7 7 7 7 5 . . . . . . . . . . . . . . . . . . 9 13 13 12 12 Leg 6 | . . . . . . . . . . . . . . . . . . . 4 23 20 18 6 6 15 17 17 17 17 17 20 21 20 21 21 28 27 6 . . . . Wheel 2 | . . . . . . . . 9 9 9 9 9 7 7 7 7 7 7 5 . . . 13 12 1 . . . . . . . . . . . . . . . . . Device 16 | . 8 . 8 8 4 9 6 8 2 13 22 21 38 38 28 7 7 7 10 15 13 9 21 23 27 23 22 17 22 20 25 28 26 26 27 32 26 29 29 28 27 28 Storage 8 | . 14 14 11 11 6 11 11 9 9 9 9 9 7 7 7 7 7 7 8 15 13 13 13 9 9 11 11 11 11 11 7 5 5 5 5 4 4 4 4 4 4 4 Processor 2 | . . . . . . . . . . . . . . . 7 . . . . . . 4 6 6 5 5 5 5 5 5 5 6 5 5 5 4 6 4 4 4 4 4 Protection 9 | . 4 13 12 13 11 1 9 9 9 9 11 13 7 7 5 . . . 3 15 12 11 4 5 6 11 11 16 11 12 12 11 15 14 13 4 7 7 8 8 8 6 Energy Cannon 7 | . . 13 20 18 8 21 15 17 . 2 . . . . . . . . 4 15 13 6 10 12 9 8 5 7 9 9 7 8 8 4 4 3 3 4 4 4 4 3 Ballistic Gun 2 | . 28 14 . . 7 . . . . . . 11 8 6 9 9 7 . 5 . . 4 2 . . . 1 2 1 . . . . . . . . . . . . . Impact Weapon 1 | . . . . . 4 . 2 . . . . . 5 7 4 4 7 7 1 . . . . . . . . . . . . . . . . . . . . . . . Peak Build Rating 247 | 9 9 16 25 24 56 46 51 57 59 66 63 61 72 80 90 91 96 92 117 110 139 119 98 98 151 139 143 143 143 147 164 164 163 167 167 184 199 203 219 214 247 246 Average Rating 101 | 6 8 9 21 23 38 40 45 50 50 54 57 57 71 75 74 90 90 91 95 109 120 113 96 93 132 135 139 141 138 138 157 157 158 162 164 175 185 198 203 208 236 237 On Entrance 104 | . 8 8 11 24 24 45 40 50 53 51 63 56 60 71 76 90 90 90 92 110 109 116 98 94 95 131 135 143 134 138 147 157 156 163 167 167 175 191 198 219 208 232 Naked Turns . | . . . . . . . . . . . . . . . . . . . . . . . . . . . . . . . . . . . . . . . . . . . Heaviest Build 241 | 14 29 33 106 106 219 223 238 241 241 237 120 111 117 123 172 173 173 173 182 150 180 181 148 161 183 186 192 193 191 189 188 184 183 184 194 169 184 195 220 224 231 227 Greatest Support 250 | 40 40 40 69 69 69 66 66 28 28 28 28 28 28 28 28 28 28 28 90 90 90 90 24 24 108 108 108 108 108 90 120 120 120 120 120 180 180 200 240 240 250 250 Greatest Overweight (x) 12 | . . . 1 1 3 3 8 8 8 11 4 5 4 4 6 6 6 6 8 2 1 11 6 12 7 1 1 1 2 2 6 1 2 1 1 . 1 . 1 1 . . Average Overweight (x) 2 | . . . . 1 . 3 3 8 7 5 3 3 4 3 3 6 6 5 4 1 1 1 5 5 2 1 1 1 1 1 1 1 1 1 1 . . . . . . . Largest Inventory Capacity 35 | 8 15 15 25 25 35 35 35 35 35 35 25 25 25 25 25 25 25 25 25 25 25 25 25 25 25 25 25 25 25 25 25 25 25 25 25 25 25 25 25 25 25 25 Average Capacity 24 | 7 10 15 24 25 18 35 35 35 35 30 25 25 25 25 25 25 25 25 20 25 25 25 25 25 24 25 25 25 25 25 25 25 25 25 25 25 25 25 25 25 25 25 Most Carried 35 | 8 14 15 25 25 35 35 35 35 35 35 25 25 25 25 25 25 25 25 25 25 25 25 25 25 25 25 25 25 25 25 25 25 25 25 25 23 25 25 25 25 25 25 Average Carried 24 | 5 9 14 24 25 15 34 34 34 34 29 24 24 24 25 24 24 24 24 19 24 24 24 24 24 22 24 24 24 24 24 24 24 24 24 24 21 24 24 24 24 24 24 Final Capacity 35 | 8 15 15 25 25 35 35 35 35 35 25 25 25 25 25 25 25 25 25 25 25 25 25 25 25 25 25 25 25 25 25 25 25 25 25 25 25 25 25 25 25 25 25 Final Carried 35 | 8 14 15 25 25 35 34 35 35 35 25 25 25 25 25 22 25 25 25 25 24 25 25 25 25 23 25 25 25 25 25 24 25 25 25 24 22 25 25 25 25 25 25 Class Distribution -------------------- 55% | Mutant 17% | Scavenger-Mutant 11% | Hauler-Mutant 5% | Generator-Mutant 5% | Commander-Mutant Dominant Class ---------------- Mutant | -10/Materials Mutant | -10/Mines Mutant | -9/Materials Mutant | -9/Mines Mutant | -9/Exiles Hauler-Mutant | -8/Mines Hauler-Mutant | -8/Materials Hauler-Mutant | -8/Garrison Hauler-Mutant | -8/Materials Hauler-Mutant | -8/Garrison Mutant | -8/Materials Mutant | -8/Storage Mutant | -7/Factory Mutant | -7/Waste Mutant | -7/Factory Mutant | -7/Lower Caves Mutant | -7/Lower Caves Mutant | -7/Zion Mutant | -7/Deep Caves Mutant | -6/Proximity Caves Mutant | -6/Factory Mutant | -6/Garrison Scavenger-Mutant | -6/Factory Scavenger-Mutant | -6/DSF Golem | -5/Factory Commander-Mutant | -5/Extension Commander-Mutant | -5/Cetus Commander-Mutant | -5/Archives Commander-Mutant | -5/Hub_04(d) Mutant | -5/Garrison Scavenger-Mutant | -4/Factory Scavenger-Mutant | -4/Upper Caves Scavenger-Mutant | -4/Upper Caves Scavenger-Mutant | -4/Warlord Scavenger-Mutant | -3/Proximity Caves Scavenger-Mutant | -3/Research Scavenger-Mutant | -3/Testing Scavenger-Mutant | -2/Research Scavenger-Mutant | -2/Quarantine Scavenger-Mutant | -2/Section 7 Generator-Mutant | -1/Access Generator-Mutant | -1/Command Resources | -11 -10 -10 -9 -9 -9 -8 -8 -8 -8 -8 -8 -8 -7 -7 -7 -7 -7 -7 -7 -6 -6 -6 -6 -6 -5 -5 -5 -5 -5 -5 -4 -4 -4 -4 -3 -3 -3 -2 -2 -2 -1 -1 ----------- Run | Yrd Mat Min Mat Min Exi Min Mat Gar Mat Gar Mat Sto Fac Was Fac Low Low Zio Dee Pro Fac Gar Fac DSF Fac Ext Cet Arc Hub Gar Fac Upp Upp War Pro Res Tes Res Qua Sec Acc Com Matter Collected 18931 | 342 208 187 714 95 599 191 292 265 524 922 1628 902 80 68 1979 26 128 84 1255 156 326 801 . 328 152 190 42 190 784 538 518 160 60 166 269 . 824 207 420 579 475 1257 Remotely . | . . . . . . . . . . . . . . . . . . . . . . . . . . . . . . . . . . . . . . . . . . . Salvage Created 35683 | 165 358 244 1515 103 528 168 388 585 708 651 1745 949 80 . 1784 . . . 833 554 1378 2452 . 324 230 874 . 332 2040 1801 2101 597 338 403 288 . 1420 317 1214 1586 1477 5153 Parts 1801 | 16 30 29 94 18 64 6 34 42 38 36 85 60 7 . 61 . . . 44 19 72 125 . 22 6 43 . 24 105 88 85 21 6 6 12 . 84 10 44 93 85 187 Haulers Intercepted 18 | . 2 . 5 . . . 1 . 1 . 4 4 . . 1 . . . . . . . . . . . . . . . . . . . . . . . . . . . Recyclers Shooed 17 | 1 . . 2 . . . 1 . . . . . . . 9 . . . . . . . . . 1 2 . . . . 1 . . . . . . . . . . . Parts Field Recycled . | . . . . . . . . . . . . . . . . . . . . . . . . . . . . . . . . . . . . . . . . . . . Retrieved Matter . | . . . . . . . . . . . . . . . . . . . . . . . . . . . . . . . . . . . . . . . . . . . Parts Self-Destructed 72 | . . . . . . . . . . . . . . . . 6 2 3 . 28 . . . . . . . . . . . 17 4 . 12 . . . . . . . Prevented 42 | . . . . . . . . . . . . . . . . 1 3 . . 1 . . . . . . . . . . . 15 9 . 13 . . . . . . . Kills | -11 -10 -10 -9 -9 -9 -8 -8 -8 -8 -8 -8 -8 -7 -7 -7 -7 -7 -7 -7 -6 -6 -6 -6 -6 -5 -5 -5 -5 -5 -5 -4 -4 -4 -4 -3 -3 -3 -2 -2 -2 -1 -1 ------- Run | Yrd Mat Min Mat Min Exi Min Mat Gar Mat Gar Mat Sto Fac Was Fac Low Low Zio Dee Pro Fac Gar Fac DSF Fac Ext Cet Arc Hub Gar Fac Upp Upp War Pro Res Tes Res Qua Sec Acc Com Combat Hostiles Destroyed 549 | . 10 7 26 10 3 6 10 18 17 22 39 18 . . 17 . . . 9 10 20 41 . 10 3 10 . 2 24 29 28 9 6 6 7 . 18 3 11 23 24 53 Melee 2 | . . . . . . . . . . 1 . . . . . . . . 1 . . . . . . . . . . . . . . . . . . . . . . . Guns 54 | . 4 . . . 1 . . . . . . 8 . . 16 . . . 1 . . 10 . . 1 . . . 13 . . . . . . . . . . . . . Cannons 340 | . . 2 20 6 1 3 6 10 17 15 39 7 . . . . . . . 10 15 27 . 5 2 8 . 2 11 26 17 7 3 4 6 . 13 1 5 13 15 24 AOE 81 | . 6 5 6 4 1 2 3 7 . 6 . 3 . . 1 . . . 4 . 5 3 . 4 . . . . . . 6 . . . . . . . . 4 4 7 Classes Destroyed 32 | 2 5 . 4 1 3 1 . 1 . 2 2 . . . . . . . 4 . . 1 . 1 . . . . . 1 1 . 1 1 . . . . 1 . . . Worker 23 | . 1 . . . . . . . . . 3 1 2 . 2 . . . . . 1 . . . . . . . 4 . . . . . . . 1 . . 1 1 6 Builder 28 | . . . 3 . . . 1 . 1 . 2 1 . . 10 . . . . . 4 . . . . . . . . . . . . . . . 2 . 2 2 . . Tunneler 14 | 5 1 6 . . . . . . 2 . . . . . . . . . . . . . . . . . . . . . . . . . . . . . . . . . Hauler 18 | . 2 . 5 . . . 1 . 1 . 4 4 . . 1 . . . . . . . . . . . . . . . . . . . . . . . . . . . Recycler 23 | 1 . . 1 . . . 1 . . . 2 . . . 11 . . . . . 3 . . . . 1 . . . . 1 . . . . . . . . . . 2 Mechanic 10 | . . . 1 . . . . . . . 2 . . . 1 . . . . . 2 . . . . . . . . . 1 . . . . . . . . 1 . 2 Operator 9 | . . . 1 . . . 1 . . . . 1 . . . . . . . . . . . . . . . 4 1 . . . . . . . 1 . . . . . Drone 1 | . . . . . . . . . . . . . . . . . . . 1 . . . . . . . . . . . . . . . . . . . . . . . Turret 1 | . . . . . 1 . . . . . . . . . . . . . . . . . . . . . . . . . . . . . . . . . . . . . Watcher 18 | . 2 . 4 . . . 1 . . . 2 1 1 . 1 . . . . . . . . . . 1 . . . . 1 . . . . . . . . 1 . 3 Swarmer 131 | . 6 5 9 8 . 3 9 8 . 6 . 3 . . 3 . . . . 2 5 10 . 8 . 2 . . . 4 7 1 2 . 5 . 3 . . 8 8 6 Cutter 6 | . . . . . . . . . . 3 . . . . . . . . . . . 3 . . . . . . . . . . . . . . . . . . . . Saboteur 2 | . . . . . . . . . . . . . . . . . . . . . . . . . . . . . . . 1 . . . . . . . . . . 1 Grunt 148 | . 4 2 8 . . . . 3 9 9 24 8 . . 6 . . . . 6 5 17 . . . . . . 1 12 11 . . . 1 . 4 . . 1 1 16 Brawler 16 | . . . . . . . . 1 2 . 3 . . . . . . . . . . . . . . . . . . . 2 1 . 2 . . . . . . . 5 Duelist 10 | . . . . . . . . . . . 3 . . . . . . . . 1 . . . . . . . . . 1 1 3 1 . . . . . . . . . Protector 6 | . . . . . . . . . . . 1 . . . . . . . . . . . . . . . . . 3 . . . . 1 . . . . . . . 1 Sentry 68 | . . . 9 . . . . 5 4 3 7 6 . . 2 . . . . 1 3 7 . . . 6 . 2 3 1 2 2 . . . . . . . 3 1 1 Demolisher 2 | . . . . 2 . . . . . . . . . . . . . . . . . . . . . . . . . . . . . . . . . . . . . . Specialist 3 | . . . . . . . . . . . . . . . . . . . . . . . . . . . . . . 1 . . . 2 . . . . . . . . Hunter 40 | . . . . . . 3 1 1 2 . 1 1 . . 1 . . . . . 3 2 . . . . . . 3 5 . . 2 . . . . 2 5 . 5 3 Programmer 76 | . . . . . . . . . . 1 . . . . 5 . . . . . 4 1 . 1 2 . . . 4 3 4 2 . . . . 11 . 5 9 9 15 Heavy 3 | . . . . . . . . . . . . . . . . . . . . . . . . 1 . . . . 1 . . . . . . . . . . 1 . . Behemoth 7 | . . . . . . . . . . . . . . . . . . . . . . 1 . . . 1 . . . 2 . . . . 1 . . 1 . 1 . . M Guard 2 | . . . . . . . . . . . . . . . . . . . . . . . . . . . . . . . . . . . . . . . . . . 2 Lightning 9 | . . . . . . . . . . . . . . . . . . . . . . . . . . . . . 9 . . . . . . . . . . . . . Combat Programmer 2 | . . . . . . . . . . . . . . . . . . . . . . . . . . . . . . . . . . . . . . . . . . 2 Striker 2 | . . . . . . . . . . . . . . . . . . . . . . . . . . . . . . . . . . 2 . . . . . . . . Fortress 1 | . . . . . . . . . . . . . . . . . . . . . . . . . . . . . . . . . . . . . . . 1 . . . Zionite 8 | . . . . . 8 . . . . . . . . . . . . . . . . . . . . . . . . . . . . . . . . . . . . . Z-Light 5 | . . . . . . . . . . . . . . . . . . . 5 . . . . . . . . . . . . . . . . . . . . . . . Master Thief 1 | . . . . . . . . . . . . . . . . . . . . . . . . . . . . . . . . . 1 . . . . . . . . . Assembler 2 | . . . . . . . . . . . . . . . . . . . 2 . . . . . . . . . . . . . . . . . . . . . . . Assembled 2 | . . . . . 2 . . . . . . . . . . . . . . . . . . . . . . . . . . . . . . . . . . . . . Golem 5 | . . . . . . . . . . . . . . . . . . . 4 . . . . . 1 . . . . . . . . . . . . . . . . . Thug 1 | . . . . . . . . . . . . . . . . . . . . . . . . . . 1 . . . . . . . . . . . . . . . . Savage 1 | . . . . . . . . . . 1 . . . . . . . . . . . . . . . . . . . . . . . . . . . . . . . . Best Kill Streak 14 | 3 6 3 5 4 4 3 4 4 7 5 5 3 1 . 5 . . . 3 2 6 5 . 4 1 3 . 3 7 4 14 5 2 6 5 . 9 2 3 4 10 12 Combat Bots Only 13 | . 3 3 4 4 2 3 3 4 7 5 4 3 . . 3 . . . 3 2 5 5 . 4 1 3 . 2 7 4 13 5 2 6 5 . 8 2 2 4 10 8 Max Kills in Single Turn 5 | 1 4 3 2 2 2 1 3 2 2 4 2 2 1 . 1 . . . 3 1 5 3 . 2 1 1 . 1 2 2 3 1 1 1 1 . 1 1 1 3 4 5 Gunslinging . | . . . . . . . . . . . . . . . . . . . . . . . . . . . . . . . . . . . . . . . . . . . Exploded 5 | . 3 3 2 2 1 1 3 2 . 3 . 2 . . 1 . . . 3 . 5 3 . 2 . . . . . . 2 . . . . . . . . 3 4 3 Melee 1 | . . . . . . . . . . 1 . . . . . . . . 1 . . . . . . . . . . . . . . . . . . . . . . . Uniques/NPCs Destroyed 6 | . . . . . 4 . . . . . . . . . . . . . 1 . . . . . . . . . . . . . . . . . . . . . . 1 8R-AWN (-9/Exiles) EX-DEC (-9/Exiles) EX-BIN (-9/Exiles) EX-HEX (-9/Exiles) Z-Imprinter (-7/Deep Caves) MAIN.C Shell (-1/Command) Combat | -11 -10 -10 -9 -9 -9 -8 -8 -8 -8 -8 -8 -8 -7 -7 -7 -7 -7 -7 -7 -6 -6 -6 -6 -6 -5 -5 -5 -5 -5 -5 -4 -4 -4 -4 -3 -3 -3 -2 -2 -2 -1 -1 -------- Run | Yrd Mat Min Mat Min Exi Min Mat Gar Mat Gar Mat Sto Fac Was Fac Low Low Zio Dee Pro Fac Gar Fac DSF Fac Ext Cet Arc Hub Gar Fac Upp Upp War Pro Res Tes Res Qua Sec Acc Com Hostile Shots Fired 2603 | . 49 21 75 22 83 34 41 33 57 115 145 66 . . 143 2 3 4 33 67 131 353 . 47 14 69 . 8 106 139 88 33 9 . 6 . 60 30 73 123 88 233 Missed 778 | . 13 6 24 8 12 15 10 10 11 26 34 21 . . 42 1 . 2 6 16 49 105 . 13 5 25 . 1 29 51 36 15 3 . 2 . 21 9 23 44 27 63 Intercepted 4 | . . . . . . . . . . . . . . . . . . . . . . . . . . . . . . . . . . . . . . . . . . 4 Damage Taken 22267 | . 409 152 597 212 1323 184 299 389 747 1203 1445 683 . . 1053 14 137 40 1091 749 1168 2893 . 393 73 485 . 83 508 650 389 181 144 . 125 . 206 203 497 795 543 2204 Core 1947 | . 39 10 112 7 215 20 29 51 90 58 46 92 . . 98 . 14 . 218 83 141 217 . 37 24 47 . 13 52 59 34 . 34 . . . 3 . . 12 15 77 Absorbed by Shields 8143 | . . . . . . . . . . 200 412 . . . 307 . . . . . 191 465 . 150 79 422 . 78 523 617 379 47 . . 11 . 217 195 470 749 521 2110 Reduced by Siege Mode 184 | . . . . . . . . . . . . . . . . . . . . . . . . . . . . . . . . . . . . . . . 18 11 9 146 Redirected to Shielding 81 | . . . . . . . . . . . . . . . . . . . 81 . . . . . . . . . . . . . . . . . . . . . . . Ignored by Resistances 6826 | . . . . . . . . . . . . . . . . . . . . 155 213 565 . . 33 182 . 33 1693 346 280 151 30 . 27 . 468 . 180 757 344 1369 Regen/Repaired (Parts) 2279 | . . . 27 . . . 222 . 286 . 232 539 . . 18 . . . . . . . . . . . 29 87 . . 40 . . 32 . . . . 191 . 130 446 Core Remaining (%) 71 | 100 . 80 . . . 11 . . . . . 33 . . . . . . . 41 . . . 53 . . . . . 80 . . . . 94 . 99 . . 99 . 94 Volleys Fired 2270 | 13 30 19 57 10 81 11 29 35 50 87 180 60 1 . 120 1 9 . 34 58 114 140 4 38 26 33 6 20 93 88 62 40 21 11 12 2 120 12 57 107 91 288 Largest 2 | 2 2 2 2 2 2 2 2 2 1 2 2 2 2 . 2 1 1 . 2 2 2 2 1 2 1 2 1 2 2 2 1 1 1 1 1 1 1 1 1 2 1 1 Hottest 214 | 40 40 85 131 126 63 126 126 144 60 144 88 88 50 . 50 25 30 . 82 50 50 207 113 188 113 119 30 119 138 138 113 113 113 70 70 113 113 94 120 214 200 200 Shots Fired 2920 | 26 57 31 103 17 120 19 50 60 50 90 181 117 2 . 207 4 9 . 40 116 173 215 4 41 26 58 6 24 122 126 62 40 21 11 12 2 120 12 58 110 91 287 Gun 730 | 26 54 12 . . 113 . 7 . 3 . . 73 2 . 207 4 9 . 23 . . 88 . . 2 . 6 16 65 . . . . . . . 16 . . 4 . . Cannon 2115 | . . 17 99 14 4 16 42 55 47 87 181 42 . . . . . . 15 116 173 126 4 38 24 56 . 8 57 126 52 40 21 11 12 2 104 12 58 104 90 262 Launcher 69 | . 3 2 4 3 3 3 1 5 . 3 . 2 . . . . . . 2 . . 1 . 3 . . . . . . 10 . . . . . . . . 2 1 21 Special 6 | . . . . . . . . . . . . . . . . . . . . . . . . . . 2 . . . . . . . . . . . . . . . 4 Kinetic 1080 | 26 54 12 . . 113 . 7 . 50 77 181 115 2 . 207 4 9 . 26 . . 88 . . 2 . 6 16 65 . . . . . . . 16 . . 4 . . Thermal 1154 | . . 17 7 . . . . . . . . . . . . . . . 1 116 173 125 4 24 24 35 . 4 47 83 16 15 1 . . 2 83 . 39 77 62 199 Explosive 38 | . 3 2 4 3 3 3 1 5 . 3 . 2 . . . . . . 2 . . 1 . 3 . . . . . . . . . . . . . . . 2 1 . Electromagnetic 644 | . . . 92 14 4 16 42 55 . 10 . . . . . . . . 11 . . 1 . 14 . 23 . 4 10 43 46 25 20 11 12 . 21 12 19 27 28 84 Robot Hit Streak 45 | 4 7 10 8 4 31 10 6 20 11 6 13 11 3 . 25 . 2 . 6 5 14 23 . 9 12 36 2 11 18 16 19 6 12 5 10 . 45 3 12 22 25 27 Robot Miss Streak 11 | 2 2 3 5 1 3 1 5 2 2 11 4 4 . . 5 . 2 . 5 2 3 5 . 1 1 1 1 2 3 3 2 2 1 1 1 . 2 3 1 1 4 4 Penetration Max 2 | . . . . . 1 . . . 2 . 1 . . . . . . . 2 . . 1 . . . . 1 . 2 . . . . 1 1 . . . . . . . Secondary Targets 3 | . 1 . . . . . . . . . . . . . 2 . . . . . . . . . . . . . . . . . . . . . . . . . . . Max Gunslinging Chain 1 | . 1 . . . . . . . . . . . . . 1 . . . . . . . . . . . . . . . . . . . . . . . . . . . Capacitor 712 | . . . . . . . . . . . . . . . . . . . . . . . . . . . . . . . 19 38 21 11 12 . 89 12 56 102 90 262 Shots Hit Robots 1815 | 14 37 18 60 8 119 13 23 30 39 43 113 79 4 . 147 . 5 . 24 19 70 129 . 18 11 72 13 20 87 75 47 29 18 9 12 . 99 8 35 57 50 161 Core Hits 969 | 8 26 15 39 12 31 10 15 19 20 21 52 41 3 . 45 . 1 . 19 14 30 60 . 18 2 19 4 11 43 32 72 10 9 8 7 . 30 3 10 27 24 159 Critical Kills 50 | . . 1 . . 1 . 1 . 1 . . . . . 2 . . . 10 . . 11 . . 1 . . 3 14 . . . . . . . 2 . . 2 1 . Critical Parts Destroyed 63 | . 1 . . . 11 . 1 . . 2 . . . . 10 . 3 . 7 . . 12 . . 1 . 1 2 6 . . . . . . . 6 . . . . . Critical Strikes 160 | . 1 1 . . 12 . 2 1 6 7 21 2 . . 12 . 3 . 17 . . 23 . . 2 2 2 5 20 1 . . . 3 . . 10 . 1 3 3 . Meltdown 4 | . . 1 . . . . . . . . . . . . . . . . . . . . . . . . . . . . . . . . . . 1 . . 1 1 . Destroy 93 | . 1 . . . 7 . 2 . 1 . . . . . 5 . 3 . 15 . . 23 . . 2 . 1 5 20 . . . . . . . 7 . . 1 . . Blast 33 | . . . . . . . . . 5 5 21 2 . . . . . . . . . . . . . . . . . . . . . . . . . . . . . . Corrupt 11 | . . . . . . . . 1 . . . . . . . . . . . . . . . . . 2 . . . 1 . . . 3 . . . . 1 1 2 . Smash 16 | . . . . . 5 . . . . 2 . . . . 7 . . . 2 . . . . . . . . . . . . . . . . . . . . . . . Sever 1 | . . . . . . . . . . . . . . . . . . . . . . . . . . . 1 . . . . . . . . . . . . . . . Impale 2 | . . . . . . . . . . . . . . . . . . . . . . . . . . . . . . . . . . . . . 2 . . . . . Melee Attacks 257 | . . . 11 . 25 . 4 . . 6 . . 7 . 71 5 . . 11 . . 16 . . . 28 9 . . 3 . . . 5 1 3 24 4 7 4 1 12 Kinetic 2 | . . . . . . . . . . . . . . . . . . . . . . . . . . . . . . . . . . . . . . . 2 . . . Impact 140 | . . . 11 . 25 . 4 . . 6 . . 7 . 71 5 . . 11 . . . . . . . . . . . . . . . . . . . . . . . Slashing 22 | . . . . . . . . . . . . . . . . . . . . . . . . . . . 9 . . . . . . . . . . . . . 1 12 Piercing 65 | . . . . . . . . . . . . . . . . . . . . . . 16 . . . . . . . 3 . . . 5 1 3 24 4 5 4 . . Sneak Attacks 71 | . . . 2 . . . . . . . . . 2 . 22 . . . . . . 1 . . . 27 9 . . 1 . . . 1 . . 1 . 1 . 1 3 Combat Hostiles 1 | . . . . . . . . . . . . . . . . . . . . . . . . . . . . . . 1 . . . . . . . . . . . . Follow-up Attacks . | . . . . . . . . . . . . . . . . . . . . . . . . . . . . . . . . . . . . . . . . . . . Damage Inflicted 83224 | 162 934 547 2139 536 2785 594 881 1636 2142 2713 6481 1867 201 . 4492 . 112 . 1345 1325 4357 4758 . 1382 468 1990 631 527 2909 3399 3113 1277 693 631 502 . 4527 299 1641 3636 3376 12216 Guns 7966 | 162 371 78 . . 1453 . 63 . 78 . . 888 31 . 2271 . 112 . 339 . . 746 . . 33 . 84 217 726 . . . . . . . 282 . . 32 . . Cannons 52895 | . . 229 1545 213 42 317 664 747 2064 1937 6474 625 . . . . . . 257 1325 3465 3530 . 611 435 1823 . 310 2161 3399 1652 1277 693 572 502 . 3130 299 1552 2344 2186 6515 Explosions 14698 | . 563 231 446 296 261 277 154 889 . 551 . 350 . . 188 . . . 405 . 839 183 . 771 . . . . . . 1461 . . . . . . . . 1260 1048 4525 Melee 7292 | . . . 120 . 1029 . . . . 225 . . 170 . 2027 . . . 344 . . 299 . . . . 547 . . . . . . 59 . . 1115 . 89 . 142 1126 Ramming 355 | . . 9 28 27 . . . . . . 7 4 . . 6 . . . . . 53 . . . . 149 . . 22 . . . . . . . . . . . . 50 Kinetic 19002 | 162 371 78 . . 1453 . 63 . 2142 1805 6474 1513 31 . 2271 . 112 . 377 . . 746 . . 33 . 84 217 726 . . . . . . . 282 . 30 32 . . Thermal 29042 | . 55 229 262 . . . . 81 . . . . . . 188 . . . . 1325 3971 3530 . 206 435 1191 . 174 1861 2204 480 480 . . . . 2458 . 946 1417 1171 6378 Explosive 7722 | . 508 231 286 296 261 277 154 808 . 551 . 350 . . . . . . 405 . 333 183 . 771 . . . . . . . . . . . . . . . 1260 1048 . Electromagnetic 19841 | . . . 1443 213 42 317 664 747 . 132 . . . . . . . . 219 . . . . 405 . 650 . 136 300 1195 2633 797 693 572 502 . 672 299 606 927 1015 4662 Impact 3915 | . . . 120 . 1029 . . . . 225 . . 170 . 2027 . . . 344 . . . . . . . . . . . . . . . . . . . . . . . Slashing 1815 | . . . . . . . . . . . . . . . . . . . . . . . . . . . 547 . . . . . . . . . . . . . 142 1126 Piercing 1532 | . . . . . . . . . . . . . . . . . . . . . . 299 . . . . . . . . . . . 59 . . 1115 . 59 . . . Highest Corruption 11 | . . . . . . . . . . 2 2 2 . . 9 9 9 9 9 9 2 . . 1 . . . . 9 10 . . . . . . 1 . 1 7 5 11 Average Corruption 5 | . . . . . . . . . . 1 2 2 . . 4 9 9 9 9 6 1 . . 1 . . . . 5 9 . . . . . . 1 . 1 1 3 7 Corruption Purged 20 | . . . . . . . . . . . . . . . 8 . . . . 3 2 . . . . . . . . . . . . . . . . . . 7 . . Corruption Blocked . | . . . . . . . . . . . . . . . . . . . . . . . . . . . . . . . . . . . . . . . . . . . Effects 567 | . . . . . . . . . . 2 23 14 . . 37 20 19 62 132 54 13 . . 1 . . . . 10 70 . . . . . . 3 . 1 9 16 81 Message Errors 133 | . . . . . . . . . . . 7 3 . . 11 4 7 13 25 12 2 . . . . . . . 5 19 . . . . . . 1 . . 3 1 20 Matter Fused 144 | . . . . . . . . . . 2 5 4 . . 13 5 3 20 32 12 3 . . 1 . . . . 1 18 . . . . . . 1 . . 1 4 19 Heat Flow Errors 71 | . . . . . . . . . . . 1 2 . . 4 2 3 8 21 4 4 . . . . . . . . 7 . . . . . . . . . 1 3 11 Energy Discharges 61 | . . . . . . . . . . . 3 1 . . 2 3 2 7 22 5 1 . . . . . . . 2 4 . . . . . . . . . 1 3 5 Parts Rejected 2 | . . . . . . . . . . . 1 . . . . . . . 1 . . . . . . . . . . . . . . . . . . . . . . . Parts Fused 9 | . . . . . . . . . . . 1 . . . . . . 2 . 1 . . . . . . . . . 2 . . . . . . . . . . . 3 Data Loss (minor) 74 | . . . . . . . . . . . 3 3 . . 2 3 3 5 20 10 . . . . . . . . 1 9 . . . . . . . . . 1 4 10 Data Loss (major) 22 | . . . . . . . . . . . 1 . . . . . . 4 6 3 2 . . . . . . . . 2 . . . . . . . . . . . 4 Misfires 20 | . . . . . . . . . . . . 1 . . 1 3 . . 3 2 1 . . . . . . . 1 2 . . . . . . . . 1 2 . 3 Alerts 16 | . . . . . . . . . . . . . . . 3 . 1 3 2 3 . . . . . . . . . 1 . . . . . . 1 . . . 1 1 Misdirections 2 | . . . . . . . . . . . . . . . . . . . . . . . . . . . . . . 1 . . . . . . . . . . . 1 Weapon Failures 13 | . . . . . . . . . . . 1 . . . 1 . . . . 2 . . . . . . . . . 5 . . . . . . . . . . . 4 Overload Shots . | . . . . . . . . . . . . . . . . . . . . . . . . . . . . . . . . . . . . . . . . . . . Overflow Damage 5678 | . 7 . 152 11 489 22 20 211 49 239 247 20 73 . 1262 . . . 92 71 505 176 . 34 97 65 . . 65 112 56 135 27 5 11 . 326 . 153 195 174 577 Projectiles 2595 | . . . 71 . 3 . 20 3 49 154 247 . . . 10 . . . . 71 349 124 . . 97 33 . . 65 112 56 135 27 5 11 . 271 . 134 77 36 435 Explosions 746 | . 7 . 47 11 . 22 . 208 . 8 . 20 . . 60 . . . . . 152 19 . 34 . . . . . . . . . . . . . . . 118 36 4 Melee 2337 | . . . 34 . 486 . . . . 77 . . 73 . 1192 . . . 92 . 4 33 . . . 32 . . . . . . . . . . 55 . 19 . 102 138 Knockbacks 62 | . . . . . 4 . . . 5 8 27 3 . . 9 . . . 2 . . . . . . 3 . . 1 . . . . . . . . . . . . . Impact 18 | . . . . . 3 . . . . . . . . . 9 . . . 2 . . . . . . 3 . . 1 . . . . . . . . . . . . . Kinetic 40 | . . . . . . . . . 5 8 24 3 . . . . . . . . . . . . . . . . . . . . . . . . . . . . . . Secondary 4 | . . . . . 1 . . . . . 3 . . . . . . . . . . . . . . . . . . . . . . . . . . . . . . . Self-Inflicted Damage 479 | . . . 20 28 . . . 80 . 16 3 . . . 96 . . . . . 69 39 . . . . . . . . 35 . . . . . . . . . . 93 Shots 19 | . . . 1 1 . . . 2 . 1 . . . . 1 . . . . . 2 1 . . . . . . . . 3 . . . . . . . . . . 7 Rammed 11 | . . 1 3 3 . . . . . . 1 1 . . 1 . . . . . . . . . . . . . . . . . . . . . . . . . . 1 Targets Rammed 22 | . . 1 3 3 . . . . . . 1 1 . . 2 . . . . . 2 . . . . 6 . . 2 . . . . . . . . . . . . 1 Kicked 10 | . . . . . . . . . . . . . . . . . . . . . 2 . . . . 6 . . 2 . . . . . . . . . . . . . Crushed 1 | . . . . . . . . . . . . . . . 1 . . . . . . . . . . . . . . . . . . . . . . . . . . . Highest Temperature 354 | . 30 217 255 257 90 207 252 198 231 318 309 254 25 . 280 266 225 267 348 332 168 245 112 308 227 241 . 132 354 241 294 320 196 . . . . . . 136 131 188 Average Temperature 86 | . 10 63 78 129 38 79 98 73 63 103 63 81 25 . 59 117 101 119 104 102 49 30 60 109 62 79 . 63 86 91 93 133 84 . . . . . . 85 60 97 Received Heat Transfer 4384 | . 192 45 159 . . . 9 90 333 386 615 288 . . 201 . 31 . 189 54 159 897 . . . 77 . 12 24 234 141 30 37 . 6 . 31 . 12 32 8 92 Effects 12 | . . . . . . . . . . 1 1 . . . 3 . . . 2 2 . . . . . . . . 2 . . 1 . . . . . . . . . . Energy Bleed 6 | . . . . . . . . . . 1 1 . . . . . . . 1 1 . . . . . . . . 2 . . . . . . . . . . . . . Interference 4 | . . . . . . . . . . . . . . . 3 . . . 1 . . . . . . . . . . . . . . . . . . . . . . . Short Circuit 1 | . . . . . . . . . . . . . . . . . . . . 1 . . . . . . . . . . . . . . . . . . . . . . Damage (minor) 1 | . . . . . . . . . . . . . . . . . . . . . . . . . . . . . . . . 1 . . . . . . . . . . Siege Activations 46 | . . . . . . . . . . . . . . . . . . . . . . . . . . . . . . . . . . . . . 1 . 6 8 9 22 Total Turns 599 | . . . . . . . . . . . . . . . . . . . . . . . . . . . . . . . . . . . . . 39 . 83 92 55 330 Longest Duration 48 | . . . . . . . . . . . . . . . . . . . . . . . . . . . . . . . . . . . . . 39 . 30 19 16 48 Robots Corrupted 82 | . . . 1 . 5 1 1 1 . 1 . . . . 10 . . . 3 . 1 . . 1 . 3 . . . 1 5 2 3 2 . . 4 1 5 4 4 23 Combat Hostiles 63 | . . . . . 1 1 1 1 . . . . . . . . . . 3 . . . . 1 . 2 . . . 1 5 2 3 2 . . 4 1 5 4 4 22 Parts Fried 196 | . . . 11 . 2 2 2 3 . 1 . . 1 . 27 . . . . . 3 . . 6 . 4 . . 4 1 24 3 10 6 5 . 8 1 7 9 15 41 Impact Corruptions 56 | . . . 2 . 10 . . . . 2 . . 1 . 36 . . . 3 . 1 . . . . 1 . . . . . . . . . . . . . . . . Robots Melted 4 | . . 1 . . . . . . . . . . . . . . . . . . . . . . . . . . . . . . . . . . 1 . . 1 1 . Combat Hostiles 3 | . . . . . . . . . . . . . . . . . . . . . . . . . . . . . . . . . . . . . 1 . . 1 1 . Parts Melted 56 | . . 1 . . . . . . 2 . . . . . . . . . . . 3 8 . . 1 . . . 3 . 1 . 2 . . . 11 . . 11 7 6 Heat Transferred 18140 | . 50 481 435 . . . . 100 . . . . . . 150 . . . . 725 2075 1975 . 148 333 662 . 75 1179 1186 346 370 . . . . 1887 . 666 1073 851 3373 Parts Sabotaged . | . . . . . . . . . . . . . . . . . . . . . . . . . . . . . . . . . . . . . . . . . . . Parts Stolen 3 | . . . . . . . . . . . . . . . . . 1 . . . . . . . . . . . . . . 1 1 . . . . . . . . . Parts Stripped 18 | . . . . . . . . . . . . . . . . . . . . . . . . . . . . . . . . . . . . . . . 18 . . . Power Chain Reactions 22 | . . . 4 . . . . 2 . . . . . . 6 . . . . . . . . . . . . . . . 4 . . . . . . . . . . 6 Alert | -11 -10 -10 -9 -9 -9 -8 -8 -8 -8 -8 -8 -8 -7 -7 -7 -7 -7 -7 -7 -6 -6 -6 -6 -6 -5 -5 -5 -5 -5 -5 -4 -4 -4 -4 -3 -3 -3 -2 -2 -2 -1 -1 ------- Run | Yrd Mat Min Mat Min Exi Min Mat Gar Mat Gar Mat Sto Fac Was Fac Low Low Zio Dee Pro Fac Gar Fac DSF Fac Ext Cet Arc Hub Gar Fac Upp Upp War Pro Res Tes Res Qua Sec Acc Com Peak Influence 2170 | 30 370 183 442 222 . 139 116 1056 904 1759 1995 1091 385 134 513 . . . . . 739 2170 1140 1071 574 1041 721 462 562 1523 1194 . . . . 113 446 117 243 647 809 2161 Initial 1138 | . 19 68 33 172 . . 11 56 514 490 857 842 359 134 . . . . . . 125 517 1138 798 562 179 582 208 161 302 799 . . . . 74 60 22 . 80 206 431 Average 533 | 16 139 74 192 83 . 61 27 526 722 1154 1353 864 360 77 176 . . . . . 279 1527 1139 901 494 283 659 426 430 1047 883 . . . . 86 193 30 121 341 579 1053 Maximum Alert Level 5 | . 1 . 2 1 . . . 3 3 5 5 3 1 . 2 . . . . . 3 5 4 3 2 3 3 2 2 4 4 . . . . . 2 . 1 2 3 5 Low Security (%) 39 | 100 76 100 57 89 . 100 100 26 . . . . . 100 64 . . . . . 59 . . . . 55 . . 5 . . . . . . 100 52 100 93 25 13 . Level 1 11 | . 23 . 36 10 . . . 8 . . . . 100 . 23 . . . . . 8 . . . 22 25 . 12 26 5 . . . . . . 47 . 6 38 7 . Level 2 15 | . . . 5 . . . . 34 38 9 . 3 . . 12 . . . . . 28 6 . . 77 13 48 87 68 10 9 . . . . . . . . 36 51 20 Level 3 18 | . . . . . . . . 30 61 41 27 96 . . . . . . . . 3 17 . 100 . 4 51 . . 34 75 . . . . . . . . . 27 41 Level 4 9 | . . . . . . . . . . 37 42 . . . . . . . . . . 29 100 . . . . . . 49 15 . . . . . . . . . . 20 Level 5 4 | . . . . . . . . . . 12 29 . . . . . . . . . . 46 . . . . . . . . . . . . . . . . . . . 10 High Security . | . . . . . . . . . . . . . . . . . . . . . . . . . . . . . . . . . . . . . . . . . . 7 Max Security . | . . . . . . . . . . . . . . . . . . . . . . . . . . . . . . . . . . . . . . . . . . . Sterilizations 1 | . . . . . . . . . . . . . . . . . . . . . . . . 1 . . . . . . . . . . . . . . . . . . Squads Dispatched 109 | . 1 1 1 . . . 1 . 6 . 9 2 . . 11 . . . . . 13 . . . 3 1 . . 7 . 8 . . . . 1 5 3 9 2 4 21 Investigation 11 | . . 1 . . . . . . 1 . 1 1 . . 1 . . . . . 3 . . . . . . . . . 2 . . . . . . . . . . 1 Extermination 31 | . . . . . . . . . . . . . . . 5 . . . . . 5 . . . 2 . . . 2 . 2 . . . . . 3 . 3 2 1 6 Reinforcement 36 | . 1 . 1 . . . 1 . 3 . 3 1 . . 4 . . . . . 1 . . . 1 1 . . 5 . . . . . . . 2 3 3 . 3 3 Assault 21 | . . . . . . . . . 1 . 5 . . . . . . . . . . . . . . . . . . . 4 . . . . . . . . . . 11 Garrison 10 | . . . . . . . . . 1 . . . . . 1 . . . . . 4 . . . . . . . . . . . . . . 1 . . 3 . . . Intercept . | . . . . . . . . . . . . . . . . . . . . . . . . . . . . . . . . . . . . . . . . . . . Searches Triggered . | . . . . . . . . . . . . . . . . . . . . . . . . . . . . . . . . . . . . . . . . . . . Construction Impeded 2 | . . . . . . . . . . . 1 . . . 1 . . . . . . . . . . . . . . . . . . . . . . . . . . . Haulers Reinforced 3 | . . . . . . . . . . . . . . . . . . . . . 1 . . . . . . . . . . . . . . . . 1 . . 1 . Active Scanning Responses . | . . . . . . . . . . . . . . . . . . . . . . . . . . . . . . . . . . . . . . . . . . . Cargo Convoy Interrupts . | . . . . . . . . . . . . . . . . . . . . . . . . . . . . . . . . . . . . . . . . . . . Stealth | -11 -10 -10 -9 -9 -9 -8 -8 -8 -8 -8 -8 -8 -7 -7 -7 -7 -7 -7 -7 -6 -6 -6 -6 -6 -5 -5 -5 -5 -5 -5 -4 -4 -4 -4 -3 -3 -3 -2 -2 -2 -1 -1 --------- Run | Yrd Mat Min Mat Min Exi Min Mat Gar Mat Gar Mat Sto Fac Was Fac Low Low Zio Dee Pro Fac Gar Fac DSF Fac Ext Cet Arc Hub Gar Fac Upp Upp War Pro Res Tes Res Qua Sec Acc Com Distress Signals 33 | . 2 . 2 . . . 2 . 1 . 6 2 . . 1 . . . . . 3 . . . . . 1 . 1 . 1 . . 1 . . 3 2 . . 1 4 Communications Jammed 369 | . . . . . . . . . . . 1 9 . . 2 . . . . . 27 7 . 1 . 1 . . 72 . 46 . . . . . 4 . 6 110 43 40 Distress Signals 361 | . . . . . . . . . . . 1 9 . . 2 . . . . . 27 7 . . . 1 . . 71 . 46 . . . . . 4 . 6 104 43 40 Times Spotted 854 | . 14 14 47 8 33 6 20 18 23 23 67 23 1 . 32 5 7 1 22 8 33 44 . 10 5 28 6 8 31 25 42 16 9 9 10 1 28 13 13 34 32 85 Peak Tracking Total 19 | . 5 3 5 4 9 3 7 5 4 5 9 4 1 . 4 4 5 1 8 7 5 5 . 4 2 6 5 1 5 4 6 6 1 8 4 1 7 4 2 5 5 19 Tactical Retreats 58 | . . . 2 . 17 . 1 2 . 1 8 . . . . . . . . 3 . 1 . . . 1 . . 1 3 3 1 . . . . 2 . . 1 . 11 Traps | -11 -10 -10 -9 -9 -9 -8 -8 -8 -8 -8 -8 -8 -7 -7 -7 -7 -7 -7 -7 -6 -6 -6 -6 -6 -5 -5 -5 -5 -5 -5 -4 -4 -4 -4 -3 -3 -3 -2 -2 -2 -1 -1 ------- Run | Yrd Mat Min Mat Min Exi Min Mat Gar Mat Gar Mat Sto Fac Was Fac Low Low Zio Dee Pro Fac Gar Fac DSF Fac Ext Cet Arc Hub Gar Fac Upp Upp War Pro Res Tes Res Qua Sec Acc Com Traps Triggered 48 | . . . . . . . . 2 . 6 . 5 1 . 5 . . . . . . 10 . 2 . . . . . 14 . . . . . . . . . . . 3 Indirectly 1 | . . . . . . . . . . . . . . . . . . . . . . . . . . . . . . . . . . . . . . . . . . 1 Trap Hack Attempts . | . . . . . . . . . . . . . . . . . . . . . . . . . . . . . . . . . . . . . . . . . . . Triggered . | . . . . . . . . . . . . . . . . . . . . . . . . . . . . . . . . . . . . . . . . . . . Disarmed . | . . . . . . . . . . . . . . . . . . . . . . . . . . . . . . . . . . . . . . . . . . . Reprogrammed . | . . . . . . . . . . . . . . . . . . . . . . . . . . . . . . . . . . . . . . . . . . . Reused . | . . . . . . . . . . . . . . . . . . . . . . . . . . . . . . . . . . . . . . . . . . . Traps Extracted . | . . . . . . . . . . . . . . . . . . . . . . . . . . . . . . . . . . . . . . . . . . . Installed . | . . . . . . . . . . . . . . . . . . . . . . . . . . . . . . . . . . . . . . . . . . . Triggered 22 | . . . . . . . . . . . . . . . . 5 . . . . . . . . . . . . . . . . . 8 1 . . . . . . 8 Machines | -11 -10 -10 -9 -9 -9 -8 -8 -8 -8 -8 -8 -8 -7 -7 -7 -7 -7 -7 -7 -6 -6 -6 -6 -6 -5 -5 -5 -5 -5 -5 -4 -4 -4 -4 -3 -3 -3 -2 -2 -2 -1 -1 ---------- Run | Yrd Mat Min Mat Min Exi Min Mat Gar Mat Gar Mat Sto Fac Was Fac Low Low Zio Dee Pro Fac Gar Fac DSF Fac Ext Cet Arc Hub Gar Fac Upp Upp War Pro Res Tes Res Qua Sec Acc Com Machines Disabled 126 | . 2 . 1 . 13 . 2 8 . 10 8 4 1 . 7 . . 3 2 1 7 9 . . . 6 2 2 4 9 1 . 1 1 . . 8 . 4 4 . 6 Max in Single Turn 4 | . 2 . 1 . 2 . 1 2 . 2 1 1 1 . 4 . . 1 1 1 4 1 . . . 1 1 . 1 1 1 . 1 1 . . 1 . 1 2 . 1 Garrison Access 7 | . . . . . . . . . . . 1 . . . 1 . . . . . . . . . . . . . . . 1 . . . . . . 4 . . . . Garrison Relay 19 | . . . . . . . . 4 . 4 . . . . . . . . . . . 6 . . . . . . . 5 . . . . . . . . . . . . Phase Generator 4 | . . . . . . . . 1 . 1 . . . . . . . . . . . . . . . . . . . 1 . . . . . . . . . . . 1 Network Hub 4 | . . . . . . . . . . . . . . . . . . . . . . . . . . . . . 4 . . . . . . . . . . . . . Machines Repaired . | . . . . . . . . . . . . . . . . . . . . . . . . . . . . . . . . . . . . . . . . . . . Machines Dismantled 14 | . . . . . . . . . . 1 . 2 . . . . . 3 . . . . . . . 3 1 . 2 1 . . . 1 . . . . . . . . Machines Sabotaged . | . . . . . . . . . . . . . . . . . . . . . . . . . . . . . . . . . . . . . . . . . . . Overloaded Fab Kills 6 | . . . . . . . . . . . . . . . 6 . . . . . . . . . . . . . . . . . . . . . . . . . . . Hacking | -11 -10 -10 -9 -9 -9 -8 -8 -8 -8 -8 -8 -8 -7 -7 -7 -7 -7 -7 -7 -6 -6 -6 -6 -6 -5 -5 -5 -5 -5 -5 -4 -4 -4 -4 -3 -3 -3 -2 -2 -2 -1 -1 --------- Run | Yrd Mat Min Mat Min Exi Min Mat Gar Mat Gar Mat Sto Fac Was Fac Low Low Zio Dee Pro Fac Gar Fac DSF Fac Ext Cet Arc Hub Gar Fac Upp Upp War Pro Res Tes Res Qua Sec Acc Com Machines Accessed 170 | . 3 1 15 . 2 . 9 2 5 3 9 14 . . 18 . . . . . 23 2 2 . 6 7 1 . 3 1 5 . 1 6 1 . 8 3 6 7 2 5 Terminals 97 | . 2 . 9 . . . 5 2 2 3 5 11 . . 7 . . . . . 14 2 2 . 3 6 1 . 2 1 1 . . . 1 . 5 . 2 6 1 4 Fabricators 13 | . . . . . . . . . . . . . . . 3 . . . . . 4 . . . 3 . . . . . 2 . . . . . 1 . . . . . Repair Stations 13 | . . . 2 . . . 1 . 1 . 2 2 . . 3 . . . . . . . . . . . . . . . . . . . . . . . 2 . . . Recycling Units 13 | . 1 . 2 . . . 1 . 1 . 1 1 . . 2 . . . . . 1 . . . . 1 . . . . . . . . . . . . . . 1 1 Scanalyzers 12 | . . . 2 . . . 1 . . . 1 . . . 2 . . . . . 2 . . . . . . . . . 1 . . . . . 2 . 1 . . . Garrison Access 12 | . . . . . . . 1 . 1 . . . . . 1 . . . . . 2 . . . . . . . 1 . 1 . . . . . . 3 1 1 . . Total Hacks 512 | . 9 1 37 . 2 . 25 3 12 7 26 35 . . 43 . . . . . 71 5 8 . 14 12 2 . 10 9 41 . 1 13 1 . 39 11 22 27 9 17 Successful 245 | . 2 1 23 . 2 . 14 3 8 5 12 19 . . 25 . . . . . 44 3 5 . 7 3 . . 3 3 17 . 1 13 1 . 11 2 8 3 2 5 Failed 266 | . 7 . 13 . . . 11 . 4 2 14 16 . . 18 . . . . . 27 2 3 . 7 9 2 . 7 6 24 . . . . . 28 9 14 24 7 12 Catastrophic 64 | . 1 . 1 . . . 4 . . . . 5 . . 4 . . . . . 6 . . . . 1 1 . 1 3 4 . . . . . 6 3 6 10 3 5 Database Lockouts 1 | . . . 1 . . . . . . . . . . . . . . . . . . . . . . . . . . . . . . . . . . . . . . . Manual 214 | . 2 . 12 . 1 . 11 1 6 3 7 7 . . 17 . . 1 . . 39 4 6 . 3 7 1 . 4 6 18 . . . . . 22 . 6 15 5 10 Terminals 290 | . 6 . 21 . . . 12 3 6 7 15 25 . . 16 . . . . . 47 5 8 . 4 11 2 . 8 9 10 . . . 1 . 26 . 9 26 2 11 Fabricators 40 | . . . . . . . . . . . . . . . 3 . . . . . 11 . . . 10 . . . . . 15 . . . . . 1 . . . . . Repair Stations 42 | . . . 4 . . . 3 . 2 . 4 8 . . 12 . . . . . . . . . . . . . . . . . . . . . . . 9 . . . Recycling Units 41 | . 3 . 4 . . . 3 . 1 . 3 2 . . 7 . . . . . 4 . . . . 1 . . . . . . . . . . . . . . 7 6 Scanalyzers 55 | . . . 8 . . . 6 . . . 4 . . . 3 . . . . . 7 . . . . . . . . . 13 . . . . . 12 . 2 . . . Garrison Access 27 | . . . . . . . 1 . 3 . . . . . 2 . . . . . 2 . . . . . . . 2 . 3 . . . . . . 11 2 1 . . Terminal Hacks 91 | . 2 1 11 . 2 . 2 2 1 3 3 10 . . 1 . . . . . 14 2 2 . 2 . . . 2 2 2 . 1 13 1 . 5 . 1 3 1 2 Record 15 | . . . . . 1 . . . . . . . . . . . . . . . . . . . . . . . . . . . 1 11 1 . . . . . . 1 Part Schematic 3 | . . . 1 . . . . . . . . . . . . . . . . . 1 . . . . . . . 1 . . . . . . . . . . . . . Robot Schematic 1 | . . . . . . . . . . . . . . . . . . . . . 1 . . . . . . . . . . . . . . . . . . . . . Robot Analysis 11 | . 1 . 3 . . . . . . . . 1 . . . . . . . . 6 . . . . . . . . . . . . . . . . . . . . . Prototype ID Bank 1 | . . . . . . . . . . . . . . . . . . . . . . . . . . . . . . . . . . . . . 1 . . . . . Open Door 12 | . . 1 . . . . . 1 . 1 . 4 . . . . . . . . . 1 . . 1 . . . . . . . . 2 . . . . . . 1 . Open DSF 1 | . . . . . . . . . . . . . . . . . . . . . . . 1 . . . . . . . . . . . . . . . . . . . Level Access Points 2 | . . . . . . . . . . . . 1 . . . . . . . . . . . . . . . . . . . . . . . . . . . 1 . . Branch Access Points 2 | . . . . . . . . . . . . . . . . . . . . . 1 . . . . . . . . . 1 . . . . . . . . . . . Emergency Access Points 6 | . . . 1 . . . . 1 . 1 . . . . . . . . . . 1 . 1 . . . . . . 1 . . . . . . . . . . . . Fabricator Index 1 | . . . . . . . . . . . . . . . 1 . . . . . . . . . . . . . . . . . . . . . . . . . . . Repair Station Index 1 | . . . . . . . . . . . 1 . . . . . . . . . . . . . . . . . . . . . . . . . . . . . . . Scanalyzer Index 1 | . . . 1 . . . . . . . . . . . . . . . . . . . . . . . . . . . . . . . . . . . . . . . Garrison Index 1 | . . . . . . . 1 . . . . . . . . . . . . . . . . . . . . . . . . . . . . . . . . . . . Alert Level 3 | . . . 1 . . . . . . . . 1 . . . . . . . . 1 . . . . . . . . . . . . . . . . . . . . . Unreport Threat 10 | . . . . . . . . . . . 1 2 . . . . . . . . . . . . . . . . 1 . 1 . . . . . 3 . . 2 . . Locate Traps 6 | . . . 3 . . . . . . . 1 . . . . . . . . . . . . . 1 . . . . . . . . . . . 1 . . . . . Hauler Manifests 6 | . 1 . 1 . . . 1 . . . . 1 . . . . . . . . 1 . . . . . . . . . . . . . . . . . 1 . . . Zone Layout 3 | . . . . . . . . . 1 . . . . . . . . . . . 2 . . . . . . . . . . . . . . . . . . . . . Garrison Registry 3 | . . . . . . . . . . 1 . . . . . . . . . . . 1 . . . . . . . 1 . . . . . . . . . . . . Derelict Proto ID Bank 1 | . . . . . 1 . . . . . . . . . . . . . . . . . . . . . . . . . . . . . . . . . . . . . Disengage Seal 1 | . . . . . . . . . . . . . . . . . . . . . . . . . . . . . . . . . . . . . . . . . . 1 Fabricator Hacks 16 | . . . . . . . . . . . . . . . 1 . . . . . 6 . . . 5 . . . . . 4 . . . . . . . . . . . Network Status 4 | . . . . . . . . . . . . . . . 1 . . . . . 1 . . . 1 . . . . . 1 . . . . . . . . . . . Load Schematic 7 | . . . . . . . . . . . . . . . . . . . . . 4 . . . 2 . . . . . 1 . . . . . . . . . . . Build 5 | . . . . . . . . . . . . . . . . . . . . . 1 . . . 2 . . . . . 2 . . . . . . . . . . . Repair Station Hacks 25 | . . . 4 . . . 2 . 2 . 2 6 . . 5 . . . . . . . . . . . . . . . . . . . . . . . 4 . . . Scan Component 15 | . . . 2 . . . 1 . 1 . 1 3 . . 4 . . . . . . . . . . . . . . . . . . . . . . . 3 . . . Repair 10 | . . . 2 . . . 1 . 1 . 1 3 . . 1 . . . . . . . . . . . . . . . . . . . . . . . 1 . . . Recycling Unit Hacks 10 | . . . 2 . . . 1 . 1 . 2 1 . . 2 . . . . . 1 . . . . . . . . . . . . . . . . . . . . . Retrieve Matter 2 | . . . . . . . . . . . 1 . . . 1 . . . . . . . . . . . . . . . . . . . . . . . . . . . Retrieve Components 8 | . . . 2 . . . 1 . 1 . 1 1 . . 1 . . . . . 1 . . . . . . . . . . . . . . . . . . . . . Scanalyzer 27 | . . . 3 . . . 4 . . . 3 . . . 3 . . . . . 5 . . . . . . . . . 5 . . . . . 4 . . . . . Insert Component 16 | . . . 2 . . . 3 . . . 1 . . . 2 . . . . . 3 . . . . . . . . . 2 . . . . . 3 . . . . . Analyze 11 | . . . 1 . . . 1 . . . 2 . . . 1 . . . . . 2 . . . . . . . . . 3 . . . . . 1 . . . . . Garrison Access Hacks 8 | . . . . . . . 1 . 1 . . . . . 1 . . . . . 1 . . . . . . . 1 . 1 . . . . . . 2 . . . . Unlock Access 4 | . . . . . . . 1 . 1 . . . . . . . . . . . 1 . . . . . . . 1 . . . . . . . . . . . . . Seal Access 4 | . . . . . . . . . . . . . . . 1 . . . . . . . . . . . . . . . 1 . . . . . . 2 . . . . Unauthorized Hacks 68 | . . . 3 . . . 4 1 3 2 2 2 . . 12 . . . . . 17 1 3 . . 3 . . . 1 5 . . . . . 2 . 3 . 1 3 Terminals 47 | . . . 2 . . . 2 1 2 2 2 2 . . 7 . . . . . 14 1 3 . . 3 . . . 1 . . . . . . 2 . 2 . . 1 Track 1 | . . . . . . . . . . . . . . . . . . . . . 1 . . . . . . . . . . . . . . . . . . . . . Assimilate 3 | . . . . . . . . . . . . . . . . . . . . . 3 . . . . . . . . . . . . . . . . . . . . . Botnet 25 | . . . 2 . . . 2 1 2 1 2 2 . . 2 . . . . . 2 1 1 . . 1 . . . 1 . . . . . . 2 . 2 . . 1 Disrupt 2 | . . . . . . . . . . 1 . . . . . . . . . . 1 . . . . . . . . . . . . . . . . . . . . . Operators 2 | . . . . . . . . . . . . . . . . . . . . . 1 . 1 . . . . . . . . . . . . . . . . . . . Skim 14 | . . . . . . . . . . . . . . . 5 . . . . . 6 . 1 . . 2 . . . . . . . . . . . . . . . . Fabricators 8 | . . . . . . . . . . . . . . . 1 . . . . . 2 . . . . . . . . . 5 . . . . . . . . . . . Report 1 | . . . . . . . . . . . . . . . . . . . . . . . . . . . . . . . 1 . . . . . . . . . . . Prioritize 1 | . . . . . . . . . . . . . . . . . . . . . . . . . . . . . . . 1 . . . . . . . . . . . Liberate 2 | . . . . . . . . . . . . . . . . . . . . . . . . . . . . . . . 2 . . . . . . . . . . . Haulers 2 | . . . . . . . . . . . . . . . . . . . . . 1 . . . . . . . . . 1 . . . . . . . . . . . Overload 1 | . . . . . . . . . . . . . . . 1 . . . . . . . . . . . . . . . . . . . . . . . . . . . Recompile 1 | . . . . . . . . . . . . . . . . . . . . . 1 . . . . . . . . . . . . . . . . . . . . . Repair Stations . | . . . . . . . . . . . . . . . . . . . . . . . . . . . . . . . . . . . . . . . . . . . Recycling Units 11 | . . . 1 . . . 2 . . . . . . . 4 . . . . . 1 . . . . . . . . . . . . . . . . . . . 1 2 Monitor 1 | . . . . . . . . . . . . . . . 1 . . . . . . . . . . . . . . . . . . . . . . . . . . . Reject 3 | . . . . . . . 1 . . . . . . . 1 . . . . . . . . . . . . . . . . . . . . . . . . . . 1 Recyclers 6 | . . . 1 . . . 1 . . . . . . . 1 . . . . . 1 . . . . . . . . . . . . . . . . . . . 1 1 Mask 1 | . . . . . . . . . . . . . . . 1 . . . . . . . . . . . . . . . . . . . . . . . . . . . Scanalyzers 1 | . . . . . . . . . . . . . . . . . . . . . . . . . . . . . . . . . . . . . . . 1 . . . Researchers 1 | . . . . . . . . . . . . . . . . . . . . . . . . . . . . . . . . . . . . . . . 1 . . . Garrison Access 1 | . . . . . . . . . 1 . . . . . . . . . . . . . . . . . . . . . . . . . . . . . . . . . Reprogram 1 | . . . . . . . . . 1 . . . . . . . . . . . . . . . . . . . . . . . . . . . . . . . . . Data Cores Recovered 2 | . . . . . . . . . . . . . . . . . . . . . . . . . . . . . 1 . . . . . . . . . 1 . . . Used . | . . . . . . . . . . . . . . . . . . . . . . . . . . . . . . . . . . . . . . . . . . . Hacking Detections 133 | . 3 . 12 . . . 7 1 3 3 9 12 . . 14 . . . . . 22 2 1 . 4 7 1 . 3 1 3 . . . 1 . 7 2 4 6 1 4 Full Trace Events 6 | . . . 1 . . . . . . . 1 1 . . . . . . . . 2 . . . . . . . . . 1 . . . . . . . . . . . Feedback Events . | . . . . . . . . . . . . . . . . . . . . . . . . . . . . . . . . . . . . . . . . . . . Feedback Blocked . | . . . . . . . . . . . . . . . . . . . . . . . . . . . . . . . . . . . . . . . . . . . Robot Schematics Acquired 1 | . . . . . . . . . . . . . . . . . . . . . 1 . . . . . . . . . . . . . . . . . . . . . Robots Built 10 | . . . . . . . . . . . . . . . . . . . . . 4 . . . 6 . . . . . . . . . . . . . . . . . Authchips 3 | . . . . . . . . . . . . . . . . . . . . . 1 . . . 2 . . . . . . . . . . . . . . . . . Time 195 | . . . . . . . . . . . . . . . . . . . . . 67 . . . 128 . . . . . . . . . . . . . . . . . Total Robot Build Rating 44 | . . . . . . . . . . . . . . . . . . . . . 16 . . . 28 . . . . . . . . . . . . . . . . . Part Schematics Acquired 10 | . . . 1 . . . 1 . . . 1 . . . . . . . . . 3 . . . . . . . 1 . 2 . . . . . 1 . . . . . Parts Built 3 | . . . . . . . . . . . . . . . . . . . . . . . . . . . . . . . 3 . . . . . . . . . . . Authchips . | . . . . . . . . . . . . . . . . . . . . . . . . . . . . . . . . . . . . . . . . . . . Time 133 | . . . . . . . . . . . . . . . . . . . . . . . . . . . . . . . 133 . . . . . . . . . . . Total Part Build Rating 26 | . . . . . . . . . . . . . . . . . . . . . . . . . . . . . . . 26 . . . . . . . . . . . Parts Repaired 10 | . . . 2 . . . 1 . 1 . 1 3 . . 1 . . . . . . . . . . . . . . . . . . . . . . . 1 . . . Time 488 | . . . 162 . . . 38 . 38 . 38 126 . . 39 . . . . . . . . . . . . . . . . . . . . . . . 47 . . . Parts Recycled . | . . . . . . . . . . . . . . . . . . . . . . . . . . . . . . . . . . . . . . . . . . . Recycled Matter . | . . . . . . . . . . . . . . . . . . . . . . . . . . . . . . . . . . . . . . . . . . . Retrieved Matter 83 | . . . . . . . . . . . 83 . . . . . . . . . . . . . . . . . . . . . . . . . . . . . . . Retrieved Components 62 | . . . 20 . . . 9 . 3 . 10 10 . . 9 . . . . . 1 . . . . . . . . . . . . . . . . . . . . . Parts Scanalyzed 9 | . . . 1 . . . 1 . . . 1 . . . 1 . . . . . 2 . . . . . . . . . 2 . . . . . 1 . . . . . Part Schematics Acquired 7 | . . . . . . . 1 . . . 1 . . . . . . . . . 2 . . . . . . . . . 2 . . . . . 1 . . . . . Parts Damaged 3 | . . . 1 . . . 1 . . . . . . . . . . . . . . . . . . . . . . . . . . . . . 1 . . . . . Bothacking | -11 -10 -10 -9 -9 -9 -8 -8 -8 -8 -8 -8 -8 -7 -7 -7 -7 -7 -7 -7 -6 -6 -6 -6 -6 -5 -5 -5 -5 -5 -5 -4 -4 -4 -4 -3 -3 -3 -2 -2 -2 -1 -1 ------------ Run | Yrd Mat Min Mat Min Exi Min Mat Gar Mat Gar Mat Sto Fac Was Fac Low Low Zio Dee Pro Fac Gar Fac DSF Fac Ext Cet Arc Hub Gar Fac Upp Upp War Pro Res Tes Res Qua Sec Acc Com Used RIF Installer . | . . . . . . . . . . . . . . . . . . . . . . . . . . . . . . . . . . . . . . . . . . . Robots Hacked 4 | . . . . . . . . . . . . . . . . . . . . . . . . . . 2 . . . . . . . . . . . . . . . 2 Non-combat 1 | . . . . . . . . . . . . . . . . . . . . . . . . . . 1 . . . . . . . . . . . . . . . . Combat 2 | . . . . . . . . . . . . . . . . . . . . . . . . . . 1 . . . . . . . . . . . . . . . 1 Robot Hacks Applied 3 | . . . . . . . . . . . . . . . . . . . . . . . . . . 2 . . . . . . . . . . . . . . . 1 parse_system 3 | . . . . . . . . . . . . . . . . . . . . . . . . . . 2 . . . . . . . . . . . . . . . 1 Manual 1 | . . . . . . . . . . . . . . . . . . . . . . . . . . . . . . . . . . . . . . . . . . 1 Relay Couplers Released 92 | . . . . . . . . 17 . 16 2 . . . . . . . . . . 30 . . . . . . . 19 . . . . . . . 4 . . 4 . Machine Destruction 84 | . . . . . . . . 17 . 16 2 . . . . . . . . . . 26 . . . . . . . 19 . . . . . . . 4 . . . . Programmers 8 | . . . . . . . . . . . . . . . . . . . . . . 4 . . . . . . . . . . . . . . . . . . 4 . Fabnet Peak Effective % . | . . . . . . . . . . . . . . . . . . . . . . . . . . . . . . . . . . . . . . . . . . . Robots Rewired 29 | . . . . . . . . . . . . . . . . . . . . 2 . 4 . . . 15 . . . . . 2 1 4 . . . . . . . 1 Allies Hacked 1 | . . . . . . . . . . . . . . . . . . . . . 1 . . . . . . . . . . . . . . . . . . . . . Hacks Repelled . | . . . . . . . . . . . . . . . . . . . . . . . . . . . . . . . . . . . . . . . . . . . Allies | -11 -10 -10 -9 -9 -9 -8 -8 -8 -8 -8 -8 -8 -7 -7 -7 -7 -7 -7 -7 -6 -6 -6 -6 -6 -5 -5 -5 -5 -5 -5 -4 -4 -4 -4 -3 -3 -3 -2 -2 -2 -1 -1 -------- Run | Yrd Mat Min Mat Min Exi Min Mat Gar Mat Gar Mat Sto Fac Was Fac Low Low Zio Dee Pro Fac Gar Fac DSF Fac Ext Cet Arc Hub Gar Fac Upp Upp War Pro Res Tes Res Qua Sec Acc Com Total Allies 53 | . . 3 . . . . . 2 1 2 . . . . . . . . . 2 5 4 . . 6 18 . . . . 2 2 1 4 . . . . . . . 1 Largest Group 16 | . . 3 2 . . . . 2 1 2 . . . . . . . . . 2 4 4 . . 6 16 16 12 9 . 2 3 3 6 3 1 . . . . . 1 Highest-Rated Group 621 | . . 40 24 . . . . 62 31 51 . . . . . . . . . 61 61 150 . . 146 621 621 489 315 . 192 192 190 311 167 68 . . . . . 42 Highest-Rated Ally 159 | . . 16 16 . . . . 31 31 31 . . . . . . . . . 32 32 46 . . 49 159 159 136 49 . 96 96 96 68 68 68 . . . . . 42 Total Orders 208 | . . 2 . . . . 2 . 1 . 5 5 10 1 20 14 24 . 48 . 1 . . . . 3 5 1 14 . 8 . . 1 . . 13 13 . 2 3 12 STAY 33 | . . 1 . . . . . . . . . . . . 1 . 2 . 12 . 1 . . . . 2 2 1 9 . . . . 1 . . . . . . . 1 ROAM 1 | . . . . . . . . . . . . 1 . . . . . . . . . . . . . . . . . . . . . . . . . . . . . . FOLLOW 21 | . . 1 . . . . . . . . . . . . 1 1 4 . 4 . . . . . . 1 3 . . . . . . . . . . 6 . . . . EXPLORE 50 | . . . . . . . 2 . 1 . 4 2 5 . 9 . . . 1 . . . . . . . . . . . 5 . . . . . 6 7 . 1 2 5 RETURN 103 | . . . . . . . . . . . 1 2 5 1 9 13 18 . 31 . . . . . . . . . 5 . 3 . . . . . 7 . . 1 1 6 Ally Attacks 981 | . . 18 14 . . . . 15 12 3 25 . . . 4 30 122 . 291 5 56 14 . . 17 140 41 20 38 . . 52 26 15 20 2 . . . . . 1 Total Damage 20609 | . . 150 170 . . . . 300 212 22 1366 . . . 77 482 1946 . 4084 111 1425 415 . . 214 2993 1050 450 824 . . 1448 866 875 946 130 . . . . . 53 Kills 131 | . . 5 2 . . . . 3 . 1 10 . . . 1 5 10 . 17 1 13 1 . . 4 22 5 3 7 . . 6 5 3 5 1 . . . . . 1 Allies Corrupted 1 | . . . 1 . . . . . . . . . . . . . . . . . . . . . . . . . . . . . . . . . . . . . . . Allies Melted 4 | . . . . . . . . . . . . . . . . . . . . . . 1 . . . . . . . . . . . . . . . 3 . . . . Turrets Deployed 1 | . . . . . . . . . . . 1 . . . . . . . . . . . . . . . . . . . . . . . . . . . . . . . Intel | -11 -10 -10 -9 -9 -9 -8 -8 -8 -8 -8 -8 -8 -7 -7 -7 -7 -7 -7 -7 -6 -6 -6 -6 -6 -5 -5 -5 -5 -5 -5 -4 -4 -4 -4 -3 -3 -3 -2 -2 -2 -1 -1 ------- Run | Yrd Mat Min Mat Min Exi Min Mat Gar Mat Gar Mat Sto Fac Was Fac Low Low Zio Dee Pro Fac Gar Fac DSF Fac Ext Cet Arc Hub Gar Fac Upp Upp War Pro Res Tes Res Qua Sec Acc Com Robot Analysis Total 11 | . 1 . 3 . . . . . . . . 1 . . . . . . . . 6 . . . . . . . . . . . . . . . . . . . . . Derelict Logs Recovered 11 | . . 1 . 1 . . . . . . . . . . . 1 2 2 . 2 . . . . . . . . . . . 1 1 . . . . . . . . . Drone Launches 205 | . . . . . . . 2 . 1 . 4 2 6 . 24 14 39 . 78 . . . . . . . . . 6 . 4 . . . . . 10 2 . 1 2 10 Drone Recoveries 176 | . . . . . . . 2 . . . 4 1 4 1 14 14 43 . 65 . . . . . . . . . 4 . 4 . . . . . 8 1 . 1 1 9 Exploration | -11 -10 -10 -9 -9 -9 -8 -8 -8 -8 -8 -8 -8 -7 -7 -7 -7 -7 -7 -7 -6 -6 -6 -6 -6 -5 -5 -5 -5 -5 -5 -4 -4 -4 -4 -3 -3 -3 -2 -2 -2 -1 -1 ------------- Run | Yrd Mat Min Mat Min Exi Min Mat Gar Mat Gar Mat Sto Fac Was Fac Low Low Zio Dee Pro Fac Gar Fac DSF Fac Ext Cet Arc Hub Gar Fac Upp Upp War Pro Res Tes Res Qua Sec Acc Com Turns Passed 60180 | 223 468 1115 3102 1312 5709 657 2204 1473 810 2052 1994 1422 318 688 2797 585 640 1811 4047 1873 2988 1967 85 487 825 1493 496 353 1151 1660 1320 645 579 1485 542 85 1326 1352 1119 1313 982 2627 Spaces Moved 26168 | 107 227 639 1077 527 2636 157 504 593 290 914 876 621 173 423 1236 286 317 893 1797 786 1437 787 43 143 282 676 216 158 429 591 593 288 296 768 289 57 624 953 555 515 234 1155 Core 4 | 4 . . . . . . . . . . . . . . . . . . . . . . . . . . . . . . . . . . . . . . . . . . Treads 8923 | 103 227 639 1077 527 2636 157 440 . . 1 . 21 . . . . . . 8 . . . . . . . . . . . . . . . . . . 628 555 515 234 1155 Legs 8882 | . . . . . . . . . . . . . . . . . . . 398 786 1437 728 . . 225 676 216 158 429 591 591 288 296 768 289 57 624 325 . . . . Wheels 8359 | . . . . . . . 64 593 290 913 876 600 173 423 1236 286 317 893 1391 . . 59 43 143 57 . . . . . 2 . . . . . . . . . . . Hover . | . . . . . . . . . . . . . . . . . . . . . . . . . . . . . . . . . . . . . . . . . . . Flight . | . . . . . . . . . . . . . . . . . . . . . . . . . . . . . . . . . . . . . . . . . . . Fastest Speed 50 | 50 160 160 160 240 145 385 220 220 205 145 145 145 160 145 145 190 190 145 130 152 152 130 165 165 136 179 179 179 176 176 175 175 175 175 175 116 100 100 153 163 160 160 Average Speed 184 | 155 160 160 234 240 200 385 379 220 219 186 159 158 160 159 157 190 190 189 178 185 175 176 170 178 197 179 179 179 199 198 175 175 175 175 175 116 123 134 154 172 162 162 Slowest Speed 1050 | 160 160 160 240 240 385 385 410 220 220 1050 160 570 160 160 190 190 190 190 810 210 176 255 180 270 280 179 179 179 222 219 190 175 219 175 175 116 172 161 225 246 163 163 Overloaded Moves 25 | . . . . . . . . . . . . . . . . . . . . 12 13 . . . . . . . . . . . . . . . . . . . . . Propulsion Burnouts . | . . . . . . . . . . . . . . . . . . . . . . . . . . . . . . . . . . . . . . . . . . . Robots Hopped . | . . . . . . . . . . . . . . . . . . . . . . . . . . . . . . . . . . . . . . . . . . . Cave-ins Triggered 1 | . . . . . . . . . . . . . . . . . . . . . 1 . . . . . . . . . . . . . . . . . . . . . Exploration Rate (%) 58 | 5 54 99 91 94 93 33 47 79 52 85 88 91 9 96 40 59 62 84 84 69 53 65 2 96 9 89 68 78 38 57 16 52 50 87 46 3 96 47 69 31 9 49 Regions Visited 42 Branch Regions 22 Pre-discovered Areas 4 | . . . . 1 1 . . . . . . . . . . 1 . . . . 1 . . . . . . . . . . . . . . . . . . . . . Known Exits Taken 16 | . . . . . . . 1 . 1 . . 1 . . 1 . . . . 1 1 . 1 . 1 . . . 1 . 1 1 . . 1 1 . 1 . 1 1 . Unknown Exits Taken 19 | 1 1 1 1 1 1 1 . . . . 1 . . . . 1 1 1 1 . . . . . . 1 1 1 . . . . 1 1 . . 1 . 1 . . . Scrap Searched 17 | . . 1 . 1 . 1 . . . . . . . . . 1 4 2 . 2 . . . . . . . . . . . 2 1 . 2 . . . . . . . Spaces Dug 395 | . . . 24 . . 12 15 . . 2 16 . 4 . 46 5 . . 3 34 56 5 1 9 11 5 . . . 9 6 2 . 3 . 2 17 2 10 18 25 53 Terrain Destroyed 1432 | . 51 21 54 25 16 32 16 125 15 134 72 51 4 . 99 5 1 . 25 76 138 56 4 51 14 7 1 1 9 23 32 5 . 3 . 4 30 2 19 45 54 112 Melee 85 | . . . 9 . . . 4 . . . . . 4 . 46 5 . . 3 . . . . . . . . . . . . . . 3 . 2 3 2 2 . . 2 Projectile 631 | . . . . . 5 . 1 . 15 27 72 5 . . 1 . 1 . . 76 91 36 4 20 14 7 1 1 7 23 8 5 . . . 2 26 . 17 45 36 85 AOE 712 | . 51 21 45 25 11 32 11 125 . 107 . 46 . . 52 . . . 22 . 47 19 . 31 . . . . . . 24 . . . . . . . . . 18 25 Terrain Rammed . | . . . . . . . . . . . . . . . . . . . . . . . . . . . . . . . . . . . . . . . . . . . Walls Destroyed . | . . . . . . . . . . . . . . . . . . . . . . . . . . . . . . . . . . . . . . . . . . . Machines Disabled . | . . . . . . . . . . . . . . . . . . . . . . . . . . . . . . . . . . . . . . . . . . . Actions | -11 -10 -10 -9 -9 -9 -8 -8 -8 -8 -8 -8 -8 -7 -7 -7 -7 -7 -7 -7 -6 -6 -6 -6 -6 -5 -5 -5 -5 -5 -5 -4 -4 -4 -4 -3 -3 -3 -2 -2 -2 -1 -1 --------- Run | Yrd Mat Min Mat Min Exi Min Mat Gar Mat Gar Mat Sto Fac Was Fac Low Low Zio Dee Pro Fac Gar Fac DSF Fac Ext Cet Arc Hub Gar Fac Upp Upp War Pro Res Tes Res Qua Sec Acc Com Total 35482 | 135 280 705 1517 551 2916 188 744 708 401 1142 1313 987 200 435 1845 317 346 981 2603 1092 1726 1115 50 336 532 867 298 203 623 948 828 423 354 896 326 69 1110 1019 796 912 822 1823 Wait 4141 | . 1 4 225 7 45 11 135 31 27 20 211 216 8 . 303 20 16 52 540 216 100 48 . 101 160 41 43 12 10 124 96 51 15 24 5 . 192 3 102 241 451 234 Move 26123 | 106 226 638 1076 526 2635 156 504 590 289 911 875 620 173 422 1235 285 316 892 1796 785 1435 786 42 142 281 675 215 157 428 590 592 287 295 767 288 56 623 952 554 514 233 1155 Hop . | . . . . . . . . . . . . . . . . . . . . . . . . . . . . . . . . . . . . . . . . . . . Pick Up 539 | 7 10 14 37 . 65 . 17 7 5 19 13 12 3 . 12 4 2 2 95 9 16 11 1 7 25 9 5 3 16 18 15 9 1 8 4 1 16 10 9 2 6 14 Fast Attach 241 | 7 1 1 4 . 5 . 2 4 4 9 6 21 . 6 12 . . 2 21 3 9 17 . 7 5 . 1 2 4 1 6 1 3 7 3 . 35 8 14 3 2 5 Attach 170 | . 2 2 5 . 9 1 4 6 6 17 5 6 3 . 3 . . . 17 . 5 8 . 4 7 . . . 2 2 9 . . 4 3 4 7 7 8 . 4 10 Detach 88 | . 1 . 1 . . . 2 5 7 6 1 6 . 1 4 . . . 7 . 2 6 . 4 3 . . . 1 . 1 . . . 1 . 18 1 3 1 1 5 Swap 605 | 2 5 11 61 5 8 9 23 4 5 4 7 9 3 . 52 1 2 1 10 2 17 8 2 14 5 16 5 5 37 32 27 14 4 2 2 2 28 1 21 34 27 78 Drop 627 | . 4 15 37 . 43 . 24 10 8 25 14 20 1 6 23 1 1 4 72 12 24 19 1 11 20 7 6 4 23 17 20 7 3 15 7 1 47 21 21 6 6 21 Fire 2270 | 13 30 19 57 10 81 11 29 35 50 87 180 60 1 . 120 1 9 . 34 58 114 140 4 38 26 33 6 20 93 88 62 40 21 11 12 2 120 12 57 107 91 288 Melee 257 | . . . 11 . 25 . 4 . . 6 . . 7 . 71 5 . . 11 . . 16 . . . 28 9 . . 3 . . . 5 1 3 24 4 7 4 1 12 Ram 1 | . . . . . . . . . . . 1 . . . . . . . . . . . . . . . . . . . . . . . . . . . . . . . Kick 10 | . . . . . . . . . . . . . . . . . . . . . 2 . . . . 6 . . 2 . . . . . . . . . . . . . Crush 11 | . . 1 3 3 . . . . . . . 1 . . 2 . . . . . . . . . . . . . . . . . . . . . . . . . . 1 Escape Stasis 158 | . . . . . . . . 16 . 27 . . . . 8 . . . . . 1 34 . 8 . . . . . 64 . . . . . . . . . . . . Rewire 130 | . . . . . . . . . . 2 . . . . . . . . . 7 1 22 . . . 28 . . . . . 14 12 44 . . . . . . . . Trap . | . . . . . . . . . . . . . . . . . . . . . . . . . . . . . . . . . . . . . . . . . . . Miscellaneous 111 | . . . . . . . . . . 9 . 16 1 . . . . 28 . . . . . . . 24 8 . 7 9 . . . 9 . . . . . . . . Route ------- -11/Scrapyard -10/Materials (discovered 3 exits: *Mat x2 / *Min) -10/Mines (discovered 3 exits: *Mat x2 / *Sub) -9/Materials (discovered 4 exits: *Mat x2 / [*Min x2]) -9/Mines (discovered 4 exits: *Mat x2 / *Exi / *Zio) -9/Exiles (discovered 2 exits: [*Min x2]) -8/Mines -8/Materials (discovered 3 exits: *Fac / *Sto / Gar) -8/Garrison (discovered 3 exits: *Mat x3) -8/Materials (discovered 3 exits: *Fac / *Sto / Gar) -8/Garrison (discovered 3 exits: *Mat x3) -8/Materials (discovered 4 exits: *Fac x3 / *Sto) -8/Storage -7/Factory -7/Waste -7/Factory (discovered 3 exits: *Fac x2 / *Low) -7/Lower Caves -7/Lower Caves (discovered 2 exits: *Fac / *Zio) -7/Zion (discovered 2 exits: [*Dee] / [*Pro]) -7/Deep Caves -6/Proximity Caves -6/Factory (discovered 6 exits: *Fac x3 / Low x2 / Gar) -6/Garrison (discovered 4 exits: *Fac x3 / *Fac) -6/Factory (discovered 5 exits: Fac x2 / Low x2 / DSF) -6/DSF -5/Factory (discovered 2 exits: Upp / *Ext) -5/Extension (discovered 2 exits: *Fac / *Cet) -5/Cetus (discovered 2 exits: Fac / [*Arc]) -5/Archives (discovered 2 exits: *Fac / *Hub) -5/Hub_04(d) (discovered 4 exits: *Fac x3 / Gar) -5/Garrison (discovered 3 exits: *Fac x3) -4/Factory (discovered 2 exits: *Upp x2) -4/Upper Caves -4/Upper Caves -4/Warlord -3/Proximity Caves -3/Research (discovered 2 exits: *Tes x2) -3/Testing -2/Research (discovered 2 exits: *Acc / *Qua) -2/Quarantine (discovered 2 exits: *Acc / *Sec) -2/Section 7 -1/Access -1/Command Free Derelict Territories History --------- Turn | Location | Event 9 | -11/Scrapyard | Discovered new exit (range 16) 224 | -11/Scrapyard | Entered Materials 308 | -10/Materials | Build established: Mutant 412 | -10/Materials | Discovered new exit (range 12) 614 | -10/Materials | Discovered new exit (range 16) 657 | -10/Materials | Discovered new exit (range 7) 692 | -10/Materials | Entered Mines 850 | -10/Mines | Identified exit to Subcaves 881 | -10/Mines | Discovered new exit (range 12) 968 | -10/Mines | Found a damaged Exp. Sensor Array with a note attached 971 | -10/Mines | Found Prototype Device 972 | -10/Mines | Identified Exp. Sensor Array 1030 | -10/Mines | Discovered new exit (range 13) 1160 | -10/Mines | Assisted by bots powering up and referring to "LRC-V3" 1199 | -10/Mines | Received a Rocket Launcher from a helpful Derelict 1484 | -10/Mines | Met a Derelict shopkeep closing up shop 1807 | -10/Mines | Entered Materials 1807 | -9/Materials | Accompanied by 2 allies 1807 | -9/Materials | Evolved 2 slots: Propulsion x1, Utility x1 2293 | -9/Materials | Build established: Scavenger-Mutant 2474 | -9/Materials | Discovered new exit (range 7) 3205 | -9/Materials | Discovered new exit (range 9) 3491 | -9/Materials | Build established: Mutant 3525 | -9/Materials | Central database locked down 3711 | -9/Materials | Discovered new exit (range 11) 4310 | -9/Materials | Repaired Broken Exp. Sensor Array 4631 | -9/Materials | Repaired Lrg. Battery 4828 | -9/Materials | Discovered new exit (range 16) 4909 | -9/Materials | Entered Mines 4910 | -9/Mines | Learned location of Storage (-8) 5022 | -9/Mines | Deemed a non-threat by the Exiles lab entrance 5022 | -9/Mines | Discovered new exit (range 5) 5110 | -9/Mines | Assembled infested the area 5242 | -9/Mines | Learned Materials security intel 5268 | -9/Mines | Discovered new exit (range 5) 5722 | -9/Mines | Discovered new exit (range 10) 5764 | -9/Mines | A Derelict revealed a hidden shortcut to a safe place 6221 | -9/Mines | Entered Exiles 6281 | -9/Exiles | Met 8R-AWN 6320 | -9/Exiles | Met EX-HEX 6449 | -9/Exiles | Met EX-DEC 6505 | -9/Exiles | Learned location of Zion (-7) 6596 | -9/Exiles | Discovered new exit (range 12) 6900 | -9/Exiles | Met EX-BIN 6931 | -9/Exiles | Aligned with FarCom system 6933 | -9/Exiles | Given EX-Vault access code 6989 | -9/Exiles | Opened EX-Vault 7001 | -9/Exiles | Found Army-in-a-Box 7006 | -9/Exiles | Found Potential Leg 7010 | -9/Exiles | Found Potential Leg 7017 | -9/Exiles | Found Supersonic Drone Bay 7064 | -9/Exiles | Warned to stay clear of 0b10 Research branches 8586 | -9/Exiles | Attacked by the Exiles 8703 | -9/Exiles | Core integrity fell below 50% 8772 | -9/Exiles | Lost 6 parts (3n3u) 8796 | -9/Exiles | Destroyed 8R-AWN 8805 | -9/Exiles | Found Prototype Device 8819 | -9/Exiles | Found Prototype Ballistic Gun 8821 | -9/Exiles | Found Prototype Protection 8867 | -9/Exiles | Identified 8R-AWN's Armor/EX 8871 | -9/Exiles | Identified 8R-AWN's Boregun 8991 | -9/Exiles | Core integrity fell below 20% 9476 | -9/Exiles | Destroyed EX-DEC 9496 | -9/Exiles | Destroyed EX-BIN 9521 | -9/Exiles | Destroyed EX-HEX 10333 | -9/Exiles | Found Deploy-a-Sentry 10476 | -9/Exiles | Discovered new exit (range 15) 11117 | -9/Exiles | Found Prototype Device 11152 | -9/Exiles | Identified System Purifier 11185 | -9/Exiles | Found Prototype Processor 11191 | -9/Exiles | Identified Exp. Core Analyzer 11258 | -9/Exiles | Build established: Hauler-Mutant 11596 | -9/Exiles | Identified AS-neutralizer No. 17b 11930 | -9/Exiles | Stole four prototypes: Potential Leg, Supersonic Drone Bay, Army-in-a-Box, Deploy-a-Sentry 11930 | -9/Exiles | Entered Mines 12548 | -8/Mines | Discovered new exit (range 12) 12587 | -8/Mines | Entered Materials 12587 | -8/Materials | Evolved 2 slots: Utility x2 12973 | -8/Materials | Discovered new exit (range 10) 14585 | -8/Materials | Discovered new exit (range 3) 14606 | -8/Materials | Repaired Arm. Treads? 14791 | -8/Materials | Identified exit to Garrison 14791 | -8/Materials | Entered Garrison 15023 | -8/Garrison | Triggered checkpoint 15074 | -8/Garrison | Garrison Relay disabled 15239 | -8/Garrison | Triggered checkpoint 15355 | -8/Garrison | Garrison Relay disabled 15420 | -8/Garrison | Discovered new exit (range 15) 15509 | -8/Garrison | Phase Generator disabled 15576 | -8/Garrison | Attempted to access garrison exit controls, blocked by remote lockdown 15693 | -8/Garrison | Triggered checkpoint 15806 | -8/Garrison | Garrison Relay disabled 15809 | -8/Garrison | Garrison Relay disabled 15891 | -8/Garrison | Discovered new exit (range 5) 15950 | -8/Garrison | Rescued a captive Derelict 15958 | -8/Garrison | Rescued a captive Derelict 15983 | -8/Garrison | Attempted to access garrison exit controls, blocked by remote lockdown 16051 | -8/Garrison | Triggered checkpoint 16097 | -8/Garrison | Triggered checkpoint 16238 | -8/Garrison | Discovered new exit (range 13) 16264 | -8/Garrison | Entered Materials 16264 | -8/Materials | Accompanied by 1 ally 16387 | -8/Materials | Destroyed 7 combat bots 16448 | -8/Materials | Repaired Hvy. Armor Plating 16768 | -8/Materials | Discovered new exit (range 11) 16981 | -8/Materials | Discovered new exit (range 6) 17008 | -8/Materials | Garrison activated, responded to threat 17052 | -8/Materials | Identified exit to Garrison 17064 | -8/Materials | First assault squad dispatched 17074 | -8/Materials | Entered Garrison 17124 | -8/Garrison | Rescued a captive Derelict 17134 | -8/Garrison | Rescued a captive Derelict 17212 | -8/Garrison | Garrison Relay disabled 17243 | -8/Garrison | Triggered checkpoint 17398 | -8/Garrison | Triggered checkpoint 17578 | -8/Garrison | Discovered new exit (range 9) 17628 | -8/Garrison | Triggered checkpoint 17665 | -8/Garrison | Garrison Relay disabled 17946 | -8/Garrison | Discovered new exit (range 10) 18424 | -8/Garrison | Build established: Mutant 18450 | -8/Garrison | Attempted to access garrison exit controls, blocked by remote lockdown 18546 | -8/Garrison | Triggered checkpoint 18607 | -8/Garrison | Garrison Relay disabled 18618 | -8/Garrison | Discovered new exit (range 42) 18618 | -8/Garrison | Discovered new exit (range 7) 18618 | -8/Garrison | Discovered new exit (range 65) 18743 | -8/Garrison | Phase Generator disabled 18753 | -8/Garrison | Attempted to access garrison exit controls, blocked by remote lockdown 19126 | -8/Garrison | Entered Materials 19188 | -8/Materials | Discovered new exit (range 41) 19213 | -8/Materials | Repaired Hvy. Assault Cannon 19509 | -8/Materials | Discovered new exit (range 8) 19526 | -8/Materials | First assault squad dispatched 19616 | -8/Materials | DAS Turret deployed 20692 | -8/Materials | Discovered new exit (range 5) 21065 | -8/Materials | Discovered new exit (range 6) 21120 | -8/Materials | Entered Storage 21186 | -8/Storage | Core integrity fell below 50% 21204 | -8/Storage | Repaired Arm. Huge Wheel 21343 | -8/Storage | Identified exit to Factory 21729 | -8/Storage | Found Prototype Processor 22031 | -8/Storage | Repaired Arm. Treads? 22313 | -8/Storage | Repaired Arm. Huge Wheel 22542 | -8/Storage | Entered Factory 22542 | -7/Factory | Evolved 2 slots: Utility x2 22588 | -7/Factory | Discovered new exit (range 7) 22860 | -7/Factory | Sucked down chute 22860 | -7/Factory | Entered Waste 22860 | -7/Waste | The area was eerily silent 22865 | -7/Waste | 1 allies followed down the chute 23303 | -7/Waste | Discovered new exit (range 16) 23548 | -7/Waste | Entered Factory 24206 | -7/Factory | Discovered new exit (range 30) 24359 | -7/Factory | Identified Exp. Targeting Computer 25030 | -7/Factory | Discovered new exit (range 10) 25108 | -7/Factory | Garrison activated, responded to threat 25268 | -7/Factory | Identified exit to Factory 25304 | -7/Factory | Learned 4 Factory zone layouts 25330 | -7/Factory | Learned Extension non-interactive machine intel 25346 | -7/Factory | Learned location of 1 exit from Hub_04(d) 25352 | -7/Factory | Learned location of 1 exit from Cetus 25353 | -7/Factory | Learned location of 1 exit from Upper Caves 25362 | -7/Factory | Learned Extension emergency access door positions 25379 | -7/Factory | Learned Hub_04(d) non-interactive machine intel 25792 | -7/Factory | Repaired Broken Imp. Transmission Jammer 25899 | -7/Factory | Build established: Assassin 26045 | -7/Factory | Identified exit to Lower Caves 26345 | -7/Factory | Entered Lower Caves 26345 | -7/Lower Caves | Accompanied by 8 allies 26352 | -7/Lower Caves | Build established: Mutant 26358 | -7/Lower Caves | Met a Warlord Commander 26359 | -7/Lower Caves | Learned location of Warlord (-4) 26360 | -7/Lower Caves | Warlord Commander delivered Encrypted Comm Array 26360 | -7/Lower Caves | Found Encrypted Comm Array 26858 | -7/Lower Caves | Discovered new exit (range 15) 26930 | -7/Lower Caves | Entered another Lower Caves area 26930 | -7/Lower Caves | Accompanied by 8 allies 26965 | -7/Lower Caves | Discovered exit to Factory (range 10) 27232 | -7/Lower Caves | Learned Factory terminal intel 27234 | -7/Lower Caves | Encountered a Warlord checkpoint 27448 | -7/Lower Caves | Spotted 1V-BCD(f) 27449 | -7/Lower Caves | Encountered a Master Thief 27449 | -7/Lower Caves | Spotted BI-T0Y(f) 27449 | -7/Lower Caves | Potential Leg stolen by Master Thief 27450 | -7/Lower Caves | Encountered a Master Thief 27450 | -7/Lower Caves | Spotted SF-948(f) 27450 | -7/Lower Caves | Spotted 9L-O9L(f) 27451 | -7/Lower Caves | Encountered a Master Thief 27451 | -7/Lower Caves | Encountered a Master Thief 27454 | -7/Lower Caves | Spotted LT-Y93(f) 27457 | -7/Lower Caves | Encountered a Master Thief 27467 | -7/Lower Caves | Allies destroyed SF-948(f) 27469 | -7/Lower Caves | Allies destroyed BI-T0Y(f) 27471 | -7/Lower Caves | Allies destroyed LT-Y93(f) 27484 | -7/Lower Caves | Allies destroyed 9L-O9L(f) 27496 | -7/Lower Caves | Lost 4 allies 27508 | -7/Lower Caves | Discovered new exit (range 12) 27570 | -7/Lower Caves | Entered Zion 27647 | -7/Zion | Found CR-A16's Pointy Stick 27659 | -7/Zion | Discovered new exit (range 9) 28081 | -7/Zion | Learned location of 1 exit from Factory 28117 | -7/Zion | Given A8's code to call for help 28229 | -7/Zion | Received a hallucinogenic algorithm 28288 | -7/Zion | Met Imprinter 28602 | -7/Zion | Discovered new exit (range 3) 28602 | -7/Zion | Saw the warning signs outside the Deep Caves entrance 28853 | -7/Zion | Learned Factory trap positions 29215 | -7/Zion | Found Prototype Device 29215 | -7/Zion | Identified Mobile Refinery Mk. CCLXVII 29381 | -7/Zion | Entered Deep Caves 29590 | -7/Deep Caves | Attacked by Z-Imprinter 29601 | -7/Deep Caves | Allies destroyed Z-Imprinter 29631 | -7/Deep Caves | Lost 8 allies 29721 | -7/Deep Caves | Z-Facility disabled 29887 | -7/Deep Caves | Found Prototype Protection 29887 | -7/Deep Caves | Identified Zio. Weapon Casing 30192 | -7/Deep Caves | Found Zio. Weapon Casing 30226 | -7/Deep Caves | Found Zio. Weapon Casing 30775 | -7/Deep Caves | Discovered new exit (range 6) 31047 | -7/Deep Caves | Spotted AG-39532 31087 | -7/Deep Caves | Destroyed AG-39532 31289 | -7/Deep Caves | Spotted AG-57507 31334 | -7/Deep Caves | Destroyed AG-57507 31337 | -7/Deep Caves | Found GOLEM Unit 31488 | -7/Deep Caves | Triggered Deep Caves wall 31488 | -7/Deep Caves | Spotted AS-82770 31491 | -7/Deep Caves | Spotted AS-55933 31504 | -7/Deep Caves | Destroyed AS-82770 31524 | -7/Deep Caves | Destroyed AS-55933 31548 | -7/Deep Caves | Lost 4 allies 31747 | -7/Deep Caves | Found Mobile Assembly Unit 31767 | -7/Deep Caves | Exposed GOLEM chamber 31772 | -7/Deep Caves | Found GOLEM Unit 31779 | -7/Deep Caves | Found GOLEM Unit 31786 | -7/Deep Caves | Found GOLEM Unit 32502 | -7/Deep Caves | Build established: Golem 32814 | -7/Deep Caves | Found Prototype Protection 32814 | -7/Deep Caves | Identified Zio. Heavy Carapace 32874 | -7/Deep Caves | Found Zio. Weapon Casing 32973 | -7/Deep Caves | Build established: Mutant 33281 | -7/Deep Caves | Found GOLEM Unit 33428 | -7/Deep Caves | Entered Proximity Caves 33464 | -6/Proximity Caves | Learned Factory terminal intel 34435 | -6/Proximity Caves | Attracted the attention of an 0b10 outpost 34891 | -6/Proximity Caves | Core integrity fell below 50% 35145 | -6/Proximity Caves | Learned location of 1 exit from Factory 35283 | -6/Proximity Caves | Discovered exit to Factory (range 7) 35301 | -6/Proximity Caves | Entered Factory 35301 | -6/Factory | Accompanied by 2 allies 35301 | -6/Factory | Evolved 2 slots: Power x1, Utility x1 35302 | -6/Factory | Identified exit to Lower Caves 35303 | -6/Factory | Identified exit to Factory 35305 | -6/Factory | Loaded intel: 86 trap records 35306 | -6/Factory | Loaded intel: 26 terminal locations 35567 | -6/Factory | Garrison activated, responded to threat 35591 | -6/Factory | Build established: Golem 35860 | -6/Factory | Discovered exit to Factory (range 12) 35898 | -6/Factory | Build established: Mutant 35946 | -6/Factory | Garrison activated, responded to threat 36004 | -6/Factory | Crushed by falling debris 37149 | -6/Factory | Spotted B-75 Beast 37502 | -6/Factory | Learned Extension trap positions 37556 | -6/Factory | Learned Extension stockpile data 37598 | -6/Factory | Learned location of 1 exit from Proximity Caves 37632 | -6/Factory | Learned location of 2 exits from Factory 37673 | -6/Factory | Learned location of 2 exits from Factory 37686 | -6/Factory | Learned Extension trap positions 37709 | -6/Factory | Learned location of 2 exits from Proximity Caves 37744 | -6/Factory | Learned location of 1 exit from Hub_04(d) 37790 | -6/Factory | Learned Hub_04(d) trap positions 38028 | -6/Factory | Fabricated S-27 Virus (x4) 38224 | -6/Factory | Lost 3 allies 38287 | -6/Factory | Identified exit to Garrison 38289 | -6/Factory | Entered Garrison 38329 | -6/Garrison | Triggered checkpoint 38369 | -6/Garrison | Garrison Relay disabled 38397 | -6/Garrison | Triggered checkpoint 38420 | -6/Garrison | Discovered new exit (range 6) 38736 | -6/Garrison | Lost 4 allies 38744 | -6/Garrison | Triggered checkpoint 38877 | -6/Garrison | Triggered checkpoint 39009 | -6/Garrison | Discovered exit to Factory (range 9) 39019 | -6/Garrison | Triggered checkpoint 39159 | -6/Garrison | Triggered checkpoint 39197 | -6/Garrison | Garrison Relay disabled 39227 | -6/Garrison | Discovered exit to Factory (range 22) 39227 | -6/Garrison | Discovered exit to Factory (range 67) 39227 | -6/Garrison | Discovered exit to Factory (range 21) 39227 | -6/Garrison | Discovered new exit (range 74) 39355 | -6/Garrison | Garrison Relay disabled 39685 | -6/Garrison | Triggered checkpoint 39739 | -6/Garrison | Triggered checkpoint 39838 | -6/Garrison | Spotted B-75 Beast 39901 | -6/Garrison | Revealed the true nature of CR-A16's Pointy Stick 39904 | -6/Garrison | Destroyed B-75 Beast 39928 | -6/Garrison | Lost 7 parts (1p1n4u1w) 40256 | -6/Garrison | Entered Factory 40258 | -6/Factory | Loaded intel: 26 terminal locations 40341 | -6/Factory | Identified exit to DSF 40341 | -6/Factory | Entered DSF 40363 | -6/DSF | Build established: Scavenger-Mutant 40374 | -6/DSF | Additional patrols routed to DSF 40520 | -6/DSF | Discovered exit to Factory (range 14) 40711 | -6/DSF | Sterilization system engaged 40731 | -6/DSF | Ambient heat levels rising (+10) 40746 | -6/DSF | Ambient heat levels rising (+10) 40761 | -6/DSF | Ambient heat levels rising (+10) 40776 | -6/DSF | Ambient heat levels rising (+10) 40791 | -6/DSF | Ambient heat levels rising (+10) 40806 | -6/DSF | Ambient heat levels rising (+10) 40821 | -6/DSF | Ambient heat levels rising (+10) 40828 | -6/DSF | Entered Factory 40828 | -5/Factory | Evolved 2 slots: Utility x2 40829 | -5/Factory | Identified exit to Upper Caves 40829 | -5/Factory | Identified exit to Extension 41251 | -5/Factory | Build established: Golem 41448 | -5/Factory | Fabricated Y-64 Sentinel? 41458 | -5/Factory | Fabricated S-27 Virus? 41597 | -5/Factory | Lost 3 allies 41653 | -5/Factory | Entered Extension 41653 | -5/Extension | Accompanied by 3 allies 41654 | -5/Extension | Loaded intel: 18 trap records 41656 | -5/Extension | Loaded intel: 14 non-interactive machine locations 41900 | -5/Extension | Build established: Mutant 42282 | -5/Extension | Rescued a captive Derelict 42334 | -5/Extension | Build established: Commander-Mutant 42551 | -5/Extension | Spotted B-75 Beast 42562 | -5/Extension | Destroyed B-75 Beast 42566 | -5/Extension | Spotted B-75 Beast 42585 | -5/Extension | Allies destroyed B-75 Beast 42624 | -5/Extension | Lost 3 allies 42764 | -5/Extension | Rescued a captive Derelict 42851 | -5/Extension | Rescued A7 43070 | -5/Extension | Discovered new exit (range 10) 43075 | -5/Extension | Disrupted transfer network 43083 | -5/Extension | Discovered new exit (range 8) 43146 | -5/Extension | Entered Cetus 43146 | -5/Cetus | Accompanied by 16 allies (A7) 43147 | -5/Cetus | Identified exit to Factory 43151 | -5/Cetus | Acquired a Cetus Manufacturing Module code from A7 43170 | -5/Cetus | Spotted Cetus Guard 43170 | -5/Cetus | Spotted Cetus Guard 43175 | -5/Cetus | Spotted Cetus Guard 43176 | -5/Cetus | Spotted Cetus Guard 43180 | -5/Cetus | Allies destroyed Cetus Guard 43190 | -5/Cetus | Allies destroyed Cetus Guard 43193 | -5/Cetus | Allies destroyed Cetus Guard 43201 | -5/Cetus | Allies destroyed Cetus Guard 43204 | -5/Cetus | Cetus Manufacturing Module disabled 43230 | -5/Cetus | Lost 4 allies 43299 | -5/Cetus | Failed to start Cetus Manufacturing Module 43330 | -5/Cetus | Escorted A7 to Cetus Mainframe 43518 | -5/Cetus | Discovered new exit (range 15) 43584 | -5/Cetus | Found Med. Regenerative Plating 43642 | -5/Cetus | Entered Archives 43642 | -5/Archives | Accompanied by 12 allies (A7) 43647 | -5/Archives | Received a hacking code to weaken MAIN.C 43705 | -5/Archives | Discovered new exit (range 15) 43783 | -5/Archives | Discovered exit to Factory (range 16) 43995 | -5/Archives | Entered Hub_04(d) 43995 | -5/Hub_04(d) | Accompanied by 9 allies 43997 | -5/Hub_04(d) | Loaded intel: 14 trap records 43998 | -5/Hub_04(d) | Loaded intel: 85 non-interactive machine locations 44084 | -5/Hub_04(d) | Discovered exit to Factory (range 9) 44090 | -5/Hub_04(d) | Lost 4 allies 44319 | -5/Hub_04(d) | Identified exit to Garrison 44580 | -5/Hub_04(d) | Specialist reinforcements revealed to be Infiltrators 44587 | -5/Hub_04(d) | Network Hub disabled 44588 | -5/Hub_04(d) | Spotted Lightning 44592 | -5/Hub_04(d) | Spotted Lightning 44600 | -5/Hub_04(d) | Destroyed Lightning 44606 | -5/Hub_04(d) | Destroyed Lightning 44623 | -5/Hub_04(d) | Found Prototype Device 44624 | -5/Hub_04(d) | Identified Exp. EM Disruption Field 44625 | -5/Hub_04(d) | Lost 5 allies 44633 | -5/Hub_04(d) | Network Hub disabled 44646 | -5/Hub_04(d) | Spotted Lightning 44650 | -5/Hub_04(d) | Destroyed Lightning 44651 | -5/Hub_04(d) | Spotted Lightning 44654 | -5/Hub_04(d) | Spotted Lightning 44694 | -5/Hub_04(d) | Destroyed Lightning 44709 | -5/Hub_04(d) | Destroyed Lightning 44711 | -5/Hub_04(d) | Destroyed Lightning 44729 | -5/Hub_04(d) | Found Prototype Energy Cannon 44732 | -5/Hub_04(d) | Destroyed 7 combat bots 44750 | -5/Hub_04(d) | Found Exp. Targeting Computer 44754 | -5/Hub_04(d) | Found Prototype Device 44754 | -5/Hub_04(d) | Identified Exp. Phase Shifter 44801 | -5/Hub_04(d) | Network Hub disabled 44858 | -5/Hub_04(d) | Build established: Mutant 44927 | -5/Hub_04(d) | Spotted Lightning 44932 | -5/Hub_04(d) | Spotted Lightning 44937 | -5/Hub_04(d) | Destroyed Lightning 44941 | -5/Hub_04(d) | Spotted Lightning 44966 | -5/Hub_04(d) | Destroyed Lightning 44967 | -5/Hub_04(d) | Destroyed Lightning 44988 | -5/Hub_04(d) | Found Exp. Targeting Computer 45003 | -5/Hub_04(d) | Found Exp. Targeting Computer 45006 | -5/Hub_04(d) | Found Exp. EM Disruption Field 45130 | -5/Hub_04(d) | Network Hub disabled 45146 | -5/Hub_04(d) | Entered Garrison 45302 | -5/Garrison | Triggered checkpoint 45361 | -5/Garrison | System corruption reached 10% 45389 | -5/Garrison | Garrison Relay disabled 45404 | -5/Garrison | Garrison Relay disabled 45588 | -5/Garrison | Triggered checkpoint 45733 | -5/Garrison | Spotted B-75 Beast 45761 | -5/Garrison | Destroyed B-75 Beast 45800 | -5/Garrison | Triggered checkpoint 45879 | -5/Garrison | Triggered checkpoint 45977 | -5/Garrison | Phase Generator disabled 45986 | -5/Garrison | Spotted B-75 Beast 46002 | -5/Garrison | Destroyed B-75 Beast 46069 | -5/Garrison | Discovered exit to Factory (range 24) 46069 | -5/Garrison | Discovered exit to Factory (range 48) 46069 | -5/Garrison | Discovered exit to Factory (range 54) 46101 | -5/Garrison | Garrison Relay disabled 46280 | -5/Garrison | Found Adv. Powered Armor 46285 | -5/Garrison | Found Adv. Powered Armor 46288 | -5/Garrison | Found Adv. Powered Armor 46291 | -5/Garrison | Found Adv. Powered Armor 46533 | -5/Garrison | Garrison Relay disabled 46754 | -5/Garrison | Garrison Relay disabled 46806 | -5/Garrison | Entered Factory 46806 | -4/Factory | Evolved 2 slots: Propulsion x1, Utility x1 47113 | -4/Factory | Build established: Scavenger-Mutant 47202 | -4/Factory | Fabricated Gamma Bomb Array (x1) 47359 | -4/Factory | Fabricated Quantum Reactor (x2) 47483 | -4/Factory | Found Unknown Device 47483 | -4/Factory | Identified Quantum Capacitor 47556 | -4/Factory | First assault squad dispatched 47559 | -4/Factory | Identified exit to Upper Caves 47779 | -4/Factory | Destroyed 13 combat bots 48019 | -4/Factory | Enhanced Grunt warped into view, answering call for help 48019 | -4/Factory | Enhanced Grunt warped into view, answering call for help 48126 | -4/Factory | Entered Upper Caves 48126 | -4/Upper Caves | Accompanied by 2 allies 48126 | -4/Upper Caves | Spotted ZD-0ZP(f) 48127 | -4/Upper Caves | Identified exit to Upper Caves 48127 | -4/Upper Caves | Quantum Reactor stolen by Master Thief 48128 | -4/Upper Caves | Encountered a Master Thief 48132 | -4/Upper Caves | Allies destroyed ZD-0ZP(f) 48300 | -4/Upper Caves | Attracted the attention of an 0b10 checkpoint 48607 | -4/Upper Caves | Attracted the attention of an 0b10 outpost 48652 | -4/Upper Caves | Found Prototype Device 48653 | -4/Upper Caves | Identified Exp. Thermal Shield 48771 | -4/Upper Caves | Entered another Upper Caves area 48771 | -4/Upper Caves | Accompanied by 3 allies 48771 | -4/Upper Caves | Spotted 2V-NVW(f) 48773 | -4/Upper Caves | Encountered a Master Thief 48774 | -4/Upper Caves | Quantum Reactor stolen by Master Thief 48775 | -4/Upper Caves | Destroyed 2V-NVW(f) 48906 | -4/Upper Caves | Attracted the attention of an 0b10 outpost 49240 | -4/Upper Caves | Learned Research trap positions 49294 | -4/Upper Caves | Discovered new exit (range 14) 49350 | -4/Upper Caves | Entered Warlord 49350 | -4/Warlord | Accompanied by 2 allies 49492 | -4/Warlord | Learned Testing security intel 49492 | -4/Warlord | Learned Factory fabricator intel 49492 | -4/Warlord | Learned Armory fabricator intel 49492 | -4/Warlord | Learned Research terminal intel 49495 | -4/Warlord | Learned Armory trap positions 49495 | -4/Warlord | Learned Testing stockpile data 49900 | -4/Warlord | Build established: Commander-Mutant 50080 | -4/Warlord | Met Warlord 50105 | -4/Warlord | Warlord's base attacked by MAIN.C 50120 | -4/Warlord | Found Prototype Reactor 50145 | -4/Warlord | Found Prototype Device 50145 | -4/Warlord | Identified Exp. Focal Shield 50318 | -4/Warlord | Found Prototype Energy Gun 50318 | -4/Warlord | Identified Vortex Shotgun 50322 | -4/Warlord | Found Prototype Launcher 50322 | -4/Warlord | Identified Vortex Catalyst Activator 50330 | -4/Warlord | Identified EMDS 50455 | -4/Warlord | Warlord forces counterattacked 50587 | -4/Warlord | Spotted Striker 50589 | -4/Warlord | Spotted Striker 50601 | -4/Warlord | Destroyed Striker 50605 | -4/Warlord | Destroyed Striker 50619 | -4/Warlord | Build established: Scavenger-Mutant 50633 | -4/Warlord | Lost 10 allies 50780 | -4/Warlord | Warlord base infiltrated, sounded retreat 50782 | -4/Warlord | Opened side exit 50818 | -4/Warlord | Discovered new exit (range 9) 50835 | -4/Warlord | Entered Proximity Caves 50835 | -3/Proximity Caves | Accompanied by 3 allies 50836 | -3/Proximity Caves | Identified exit to Research 51132 | -3/Proximity Caves | Spotted B-86 Titan 51139 | -3/Proximity Caves | Destroyed B-86 Titan 51373 | -3/Proximity Caves | Identified Vortex Chain Reactor 51377 | -3/Proximity Caves | Entered Research 51377 | -3/Research | Accompanied by 1 ally 51377 | -3/Research | Evolved 2 slots: Propulsion x2 51378 | -3/Research | Identified exit to Testing 51379 | -3/Research | Loaded intel: 93 trap records 51380 | -3/Research | Loaded intel: 22 terminal locations 51421 | -3/Research | Garrison activated, responded to threat 51450 | -3/Research | Discovered exit to Testing (range 12) 51462 | -3/Research | Entered Testing 51508 | -3/Testing | Found Prototype Device 51508 | -3/Testing | Identified 2N-1CE's Frost Array 51667 | -3/Testing | Found Exp. Thermal Shield 51795 | -3/Testing | Destroyed 8 combat bots 51797 | -3/Testing | Build established: Mutant 51902 | -3/Testing | Found Prototype Device 51902 | -3/Testing | Identified Exp. Transmission Jammer 52036 | -3/Testing | Found Prototype Device 52036 | -3/Testing | Identified Exp. Weapon Cycler 52042 | -3/Testing | Found Prototype Reactor 52042 | -3/Testing | Identified Zero-point Reactor 52051 | -3/Testing | Found Zero-point Reactor 52102 | -3/Testing | Found Prototype Launcher 52102 | -3/Testing | Identified Z-bomb Delivery System 52136 | -3/Testing | Build established: Scavenger-Mutant 52204 | -3/Testing | Found Prototype Device 52204 | -3/Testing | Identified AEGIS Remote Shield 52318 | -3/Testing | Discovered new exit (range 65) 52373 | -3/Testing | Found Prototype Energy Cannon 52373 | -3/Testing | Identified Potential Cannon 52376 | -3/Testing | Found Prototype Energy Cannon 52376 | -3/Testing | Identified Imp. Potential Cannon 52549 | -3/Testing | Found Quantum Capacitor 52788 | -3/Testing | Entered Research 52788 | -2/Research | Warlord forces began assault on 0b10 52788 | -2/Research | Evolved 2 slots: Power x1, Utility x1 52813 | -2/Research | Distinguished unit "Bridgeowners Association" dispatched to help 52813 | -2/Research | Distinguished unit "Knights of the Pentagonal Table" dispatched to help 52840 | -2/Research | Met up with Warlord 52869 | -2/Research | Found Quantum Capacitor 52898 | -2/Research | Research machine network offline 52898 | -2/Research | Spotted B-90 Cyclops 52916 | -2/Research | Destroyed B-90 Cyclops 53099 | -2/Research | Discovered new exit (range 33) 53190 | -2/Research | Spotted Striker 53191 | -2/Research | Spotted Striker 53326 | -2/Research | Spotted B-90 Cyclops 53343 | -2/Research | Borebot progress halted 53473 | -2/Research | Lost 6 allies 53625 | -2/Research | Borebot progress halted 53790 | -2/Research | Spotted Striker 53792 | -2/Research | Spotted Striker 53842 | -2/Research | Identified exit to Access 54101 | -2/Research | Warlord invited to help at Command 54106 | -2/Research | Discovered new exit (range 22) 54138 | -2/Research | Identified exit to Quarantine 54140 | -2/Research | Entered Quarantine 54246 | -2/Quarantine | Garrison activated, responded to threat 54276 | -2/Quarantine | Found Alien Slashing Weapon 54535 | -2/Quarantine | Cryocooling Duct disabled 54550 | -2/Quarantine | Ambient heat levels rising (+20) 54550 | -2/Quarantine | Non-combat units ordered to evacuate 54661 | -2/Quarantine | Found Alien Artifact 54671 | -2/Quarantine | Discovered exit to Access (range 9) 54792 | -2/Quarantine | Found Alien Impact Weapon 54872 | -2/Quarantine | Repaired Broken Adv. Powered Armor? 55005 | -2/Quarantine | Identified Core Stripper 55019 | -2/Quarantine | Spotted Fortress 55032 | -2/Quarantine | Destroyed Fortress 55038 | -2/Quarantine | Found Prototype Device 55038 | -2/Quarantine | Identified Thermal Barrier 55050 | -2/Quarantine | Found Prototype Protection 55050 | -2/Quarantine | Identified Centrium Heavy Armor Plating 55054 | -2/Quarantine | Found Prototype Device 55054 | -2/Quarantine | Identified Exp. Force Field 55065 | -2/Quarantine | Found Unknown Protection 55065 | -2/Quarantine | Identified Hvy. Insulated Plating 55090 | -2/Quarantine | Identified Sigix Broadsword 55251 | -2/Quarantine | Discovered new exit (range 6) 55259 | -2/Quarantine | Entered Section 7 55492 | -2/Section 7 | Spotted B-90 Cyclops 55503 | -2/Section 7 | Destroyed B-90 Cyclops 56572 | -2/Section 7 | Entered Access 56572 | -1/Access | Evolved 2 slots: Power x1, Weapon x1 56573 | -1/Access | Identified exit to Command 56827 | -1/Access | Destroyed 10 combat bots 56902 | -1/Access | Build established: Generator-Mutant 57027 | -1/Access | Destroyed 8 combat bots 57554 | -1/Access | Entered Command 57792 | -1/Command | Spotted B-99 Colossus 57837 | -1/Command | First assault squad dispatched 58920 | -1/Command | Phase Generator disabled 59302 | -1/Command | Spotted M Guard 59302 | -1/Command | Spotted M Guard 59302 | -1/Command | Spotted Combat Programmer 59435 | -1/Command | Spotted Combat Programmer 59463 | -1/Command | Destroyed Combat Programmer 59480 | -1/Command | Destroyed Combat Programmer 59491 | -1/Command | Destroyed M Guard 59498 | -1/Command | Destroyed M Guard 59498 | -1/Command | All MAIN.C guards destroyed 59595 | -1/Command | System corruption reached 10% 59731 | -1/Command | Destroyed 8 combat bots 59827 | -1/Command | Disengaged cave seal 59827 | -1/Command | Derelicts emerged from the dark tunnel 59827 | -1/Command | Welcomed Warlord to Command 59946 | -1/Command | High security lockdown imminent 60026 | -1/Command | High security lockdown engaged 60028 | -1/Command | Warlord commented on Warlord statues 60127 | -1/Command | Met MAIN.C 60132 | -1/Command | Hacked MAIN.C using A7's code 60133 | -1/Command | 0b10 Conduit disabled 60139 | -1/Command | Destroyed MAIN.C Shell 60140 | -1/Command | MAIN.C activated Command garrisons 60181 | *** | Establishing Free Derelict Territories! Last Messages --------------- 60173_ MAIN.C reaction time slowed by virus. 60175_ MAIN.C suffers critical hit (Burn). 60175_ H4-CLM(g) knocked back. 60175_ MAIN.C suffers critical hit (Destroy). 60177_ Blast Slug penetrates MAIN.C. 60177_ MAIN.C knocked back. 60177_ Penetrated by Blast Slug. 60179_ LXG=H,TGIAA#PJ4< WKWNSGTKCSELY< 60180_ MAIN.C knocked back. 60180_ Blast Slug penetrates MAIN.C. 60180_ MAIN.C knocked back. 60180_ MAIN.C suffers critical hit (Blast). 60180_ Blast Slug penetrates MAIN.C. 60181_ MAIN.C: "I hope you know you're still going to DIE HERE WITH ME!" Heavy Barrier opened. 60181_ MAIN.C destroyed. ZY-L1N: Victory! Sure there's still lots to do, but without MAIN.C at the helm 0b10 doesn't stand a chance. We've got this... Map ----- +----------------------------------------------------+ | ?????????????????????????????????????????????????? | | ?????????????????????????????????????????????????? | | ?????????????????????????????????????????????????? | | ?????????????????????????????????????????????????? | | ?????????????????????????????????????????????????? | | ?????????????????????????????????????????????????? | | ?????????????????????????????????????????????????? | | ?????????????????????????????????????????????????? | | ?????????????????????????????????????????????????? | | ?????????????????????????????????????????????????? | | ?????????????????????????????????????????????????? | | ?????????????????????????????????????????????????? | | ?????????????????????????????????????????????????? | | ?????????????????????????????????????????????????? | | ?????????????????###################?????????????? | | ???????????????"""""" """ #?????????????? | | ???????????????" "" #?????????????? | | ????????????????""" "" ############### | | ??????????????""""""""""" m h | | ??????????????" " """ gm g | | ?????????????#"" """""" m gK ggg = | | ?????????????#"" """""" m h ############### | | ?????????????# " """" Wgg #?????????????? | | ?????????????# " #?????????????? | | ?????????????# " " ""#?????????????? | | ?????????????#""""""" @ """#?????????????? | | ?????????????#"" """"#?????????????? | | ?????????????# """""#?????????????? | | ?????????????# " #?????????????? | | ?????????????# %$ " " #?????????????? | | ??????????? " """" " #?????????????? | | ???????? " " """" #?????????????? | | ?????? " " " #?????????????? | | ??????######## """"" " #?????????????? | | ?????????????# """ " """"""""#?????????????? | | ?????????????# """ " " " #?????????????? | | ?????????????#####################???????????????? | | ?????????????????????????????????????????????????? | | ?????????????????????????????????????????????????? | | ?????????????????????????????????????????????????? | | ?????????????????????????????????????????????????? | | ?????????????????????????????????????????????????? | | ?????????????????????????????????????????????????? | | ?????????????????????????????????????????????????? | | ?????????????????????????????????????????????????? | | ?????????????????????????????????????????????????? | | ?????????????????????????????????????????????????? | | ?????????????????????????????????????????????????? | | ?????????????????????????????????????????????????? | | ?????????????????????????????????????????????????? | +----------------------------------------------------+ Best States ------------- Heat Dissipation 152 Coolant Potential 120 Energy Generation 107 Energy Capacity 1700 Matter Stores 300 Matter Capacity 300 Sight Range 23 Robot Scan Range 20 Terrain Scan Range 16 Terrain Scan Density 10 Jamming Range 22 Additional Mass Support 20 Base Temperature (-) 200 Armor Coverage 2400 Resistance: KI 25 Resistance: TH 50 Resistance: EX 90 Resistance: EM 75 Resistance: I 15 Resistance: S 15 Resistance: P 15 Weapon Shielding 100 Point Defense Rating 240 Weapon Cycling 25 Phase Shifting 8 Evasion (%) 63 Targeting Accuracy 20 Core Analysis 8 Recoil Reduction 6 Offensive Hacking 12 Defensive Hacking 12 Authchip Count 2 Item Schematics ----------------- Huge Storage Unit | -9/Materials | Hacked Exp. Core Analyzer | -8/Materials | Scanalyzed Arm. Huge Wheel | -8/Materials | Scanalyzed Hrd. Heavy Armor Plating | -6/Factory | Scanalyzed Adv. Terrain Scanner | -6/Factory | Scanalyzed Powered Armor | -6/Factory | Hacked Gamma Bomb Array | -5/Hub_04(d) | Hacked Quantum Capacitor | -4/Factory | Scanalyzed Imp. Plasma Cutter | -4/Factory | Scanalyzed Adv. Powered Armor | -3/Testing | Scanalyzed Robot Schematics ------------------ S-27 Virus | -6/Factory | Hacked Fabricated ------------ S-27 Virus | x4 | -6/Factory | Authchip Y-64 Sentinel | x2 | -5/Factory | Preloaded, Authchip S-27 Virus | x4 | -5/Factory | Authchip Gamma Bomb Array | x1 | -4/Factory Quantum Reactor | x2 | -4/Factory | Preloaded Alien Tech Used ----------------- Core Stripper Sigix Broadsword Achievements -------------- 404 Poison In The Code Ride The Lightning War Machine What Is This Thing? Challenges ------------ None Game ------ Seed OmegaShadingBoregun Manual? 0 Play Time 22:01:01 Cumulative 309.2 hours Start 2025.02.23 @ 12:11:36 End 2025.03.05 @ 21:14:01 Sessions 17 Manual Loads 0 Difficulty Rogue Special Mode None Game No. 41 Rogue 38 Adventurer 3 Explorer 0 Win Type 7 Total 12 Types 8/0/1/1/0/0/0/1/1 Lore% 58 Gallery% 80 Achievement% 82 Wizard Run 0 Options --------- Layout 0 ASCII 0 Keyboard 0 Movement Numpad Keybinds 0 Fullscreen 1 Font 18/SmallcapsGlow Map View 76x50 Zoom Use 0% Tactical HUD 1 Map Filters NONE Filters NONE Steam 1 RUN: b5a522b8-a9cc-445e-9845-6f71a22d9b1d